Workbook

Sheet Instructions
B19: v9
B34: How and where do I enter data?
B35: Start by entering data into the Inputs Module. These worksheets are color-coded green. Most data entry will occur on the main "Input" worksheet, but there is another input worksheet for the commuter data:
B36: • "Input_Commuter" used ONLY to measuring emissions from faculty, staff, or student commuting
B37: What next?
B38: Enter all your data for the year, then go to https://unhsimap.org/cmap/import and follow instruction on that page.
B40: NOTE: all the calculations will take place in SIMAP, after your data has been added.

Sheet Input
C2: On this Worksheet: Enter data related to emissions. If a column does not apply or the data is unavailable, leave it blank.
C3: MODULE | D3: Input
C4: WORKSHEET | D4: Input: Enter emissions source activity and institutional data
C5: UNIVERSITY
N6: --- Scope 1 Emissions Sources --- | BX6: --- Scope 2 Emissions Sources --- | CA6: --- Scope 3 Emissions Sources --- | DL6: --- Offsets ---
D7: Institutional Data | N7: On-Campus Stationary Sources | AV7: Direct Transportation Sources | BF7: Refrigerants & Chemicals | BL7: Agriculture Sources | BX7: Purchased Electricity, Steam, and Chilled Water | CA7: Commuting - click here to enter data | CK7: Directly Financed Outsourced Travel | CR7: Study Abroad Travel | CS7: Student Travel to/from Home (OPTIONAL) | CX7: Solid Waste | DC7: Wastewater | DG7: Paper
C8: Fiscal Year | D8: Budget | G8: Population | L8: Physical Size | N8: On-Campus Cogeneration Plant(s) | AG8: Other On-Campus Stationary Sources | AV8: University Fleet | BF8: Refrigerants & Chemicals | BL8: Fertilizer Application | BP8: Animal Husbandry | BX8: Electricity | BY8: Steam | BZ8: Chilled Water | CA8: Faculty / Staff Commuting | CF8: Student Commuting | CK8: Air Travel | CM8: Other | CX8: Incinerated Waste (not used for on-campus power) | CZ8: Landfilled Waste | DC8: Septic System | DD8: Central Treatment System | DG8: Uncoated Freesheet | DH8: Uncoated Freesheet | DI8: Uncoated Freesheet | DJ8: Uncoated Freesheet | DK8: Uncoated Freesheet | DL8: Offsets | DQ8: Renewable Energy Certificates (RECs) are now entered in Scope 2 to align with new methodology
D9: Operating Budget | E9: Research Budget | F9: Energy Budget | G9: Full Time Students | H9: Part-Time Students | I9: Summer School Students | J9: Faculty | K9: Staff | L9: Total Building Space | M9: Total Research Building Space | N9: Residual Oil (#5-6) | O9: Distillate Oil (#1-4) | P9: Natural Gas | Q9: LPG (Propane) | R9: Coal (Steam Coal) | S9: Incinerated Waste | T9: Wood Chips | U9: Wood Pellets | V9: Grass Pellets | W9: Residual BioHeat | X9: Distillate BioHeat | Y9: Attributable Solar - Electric | Z9: Attributable Solar - Thermal | AA9: Attributable Wind | AB9: Other | AC9: Electric Output | AD9: Steam Output | AE9: Electric Efficiency | AF9: Steam Efficiency | AG9: Residual Oil (#5-6) | AH9: Distillate Oil (#1-4) | AI9: Natural Gas | AJ9: LPG (Propane) | AK9: Coal (Steam Coal) | AL9: Incinerated Waste | AM9: Wood Chips | AN9: Wood Pellets | AO9: Grass Pellets | AP9: Residual BioHeat | AQ9: Distillate BioHeat | AR9: Attributable Solar - Electric | AS9: Attributable Solar - Thermal | AT9: Attributable Wind | AU9: Other | AV9: Gasoline Fleet | AW9: Diesel Fleet | AX9: Natural Gas Fleet | AY9: E85 Fleet | AZ9: B5 Fleet | BA9: B20 Fleet | BB9: B100 | BC9: Hydrogen | BD9: Other | BE9: Electric Fleet | BF9: HFC-134a | BG9: R-404a | BH9: HCFC-22 | BI9: HCFE-235da2 | BJ9: HG-10 | BK9: Other | BL9: Synthetic | BM9: % Nitrogen | BN9: Organic | BO9: % Nitrogen | BP9: Dairy Cows | BQ9: Beef Cows | BR9: Swine | BS9: Goats | BT9: Sheep | BU9: Horses | BV9: Poultry | BW9: Other | BX9: SET eGRID SUBREGION in SIMAP | BY9: SET FUEL MIX in SIMAP | BZ9: SET FUEL MIX in SIMAP | CA9: Carbon-free Modes | CB9: Automobile | CC9: Bus | CD9: Light Rail | CE9: Commuter Rail | CF9: Carbon-free Modes | CG9: Automobile | CH9: Bus | CI9: Light Rail | CJ9: Commuter Rail | CK9: Faculty / Staff | CL9: Students | CM9: Train | CN9: Taxi / Ferry / Rental Car | CO9: Bus | CP9: Alternative Fuel Bus | CQ9: Personal Mileage Reimbursement | CR9: Air | CS9: Automobile | CT9: Carpool | CU9: Bus | CV9: Train | CW9: Air | CX9: Mass Burn | CY9: Refuse Derived Fuel (RDF) | CZ9: No CH4 Recovery | DA9: CH4 Recovery and Flaring | DB9: CH4 Recovery and Electric Generation | DD9: Aerobic | DE9: Anaerobic | DF9: Anaerobic Digestion | DG9: 0 | DH9: 0.25 | DI9: 0.5 | DJ9: 0.75 | DK9: 1 | DL9: On-campus Composting | DM9: Forest Preservation | DN9: Retail Offsets (High End) | DO9: Retail Offsets (Low End) | DP9: Other | DQ9: Green Power Certificates | DR9: Retail Offsets (High End) | DS9: Retail Offsets (Low End) | DT9: Other
C10: UNITS | D10: $ | E10: $ | F10: $ | G10: # | H10: # | I10: # | J10: # | K10: # | L10: Square feet | M10: Square feet | N10: Gallons | O10: Gallons | P10: MMBtu | Q10: Gallons | R10: Short Tons | S10: Short Tons | T10: Short Tons | U10: Short Tons | V10: Short Tons | W10: Gallons | X10: Gallons | Y10: kWh | Z10: MMBtu | AA10: kWh | AB10: MMBtu | AC10: kWh | AD10: MMBtu | AE10: % | AF10: % | AG10: Gallons | AH10: Gallons | AI10: MMBtu | AJ10: Gallons | AK10: Short Tons | AL10: Short Tons | AM10: Short Tons | AN10: Short Tons | AO10: Short Tons | AP10: Gallons | AQ10: Gallons | AR10: kWh | AS10: MMBtu | AT10: kWh | AU10: MMBtu | AV10: Gallons | AW10: Gallons | AX10: MMBtu | AY10: Gallons | AZ10: Gallons | BA10: Gallons | BB10: Gallons | BC10: MMBtu | BD10: MMBtu | BE10: kWh | BF10: Pounds | BG10: Pounds | BH10: Pounds | BI10: Pounds | BJ10: Pounds | BK10: Pounds | BL10: Pounds | BM10: % | BN10: Pounds | BO10: % | BP10: # | BQ10: # | BR10: # | BS10: # | BT10: # | BU10: # | BV10: # | BW10: # | BX10: kWh | BY10: MMBtu | BZ10: MMBtu | CA10: Miles | CB10: Miles | CC10: Passenger Miles | CD10: Passenger Miles | CE10: Passenger Miles | CF10: Miles | CG10: Miles | CH10: Passenger Miles | CI10: Passenger Miles | CJ10: Passenger Miles | CK10: Miles | CL10: Miles | CM10: Passenger Miles | CN10: Miles | CO10: Passenger Miles | CP10: Passenger Miles | CQ10: Miles | CR10: Passenger Miles | CS10: Miles | CT10: Miles | CU10: Passenger Miles | CV10: Passenger Miles | CW10: Passenger Miles | CX10: Short Tons | CY10: Short Tons | CZ10: Short Tons | DA10: Short Tons | DB10: Short Tons | DC10: Gallons | DD10: Gallons | DE10: Gallons | DF10: Gallons | DG10: lbs | DH10: lbs | DI10: lbs | DJ10: lbs | DK10: lbs | DL10: Short Tons of Wet Organic Compost | DM10: MT eCO2 | DN10: MT eCO2 | DO10: MT eCO2 | DP10: MT eCO2
C11: 1990 | CA11: =Input_Commuter!BL11+Input_Commuter!BN11+Input_Commuter!CW11+Input_Commuter!CY11 -> 0 | CB11: =Input_Commuter!BP11+Input_Commuter!DA11 -> 0 | CC11: =Input_Commuter!BR11+Input_Commuter!DC11 -> 0 | CD11: =Input_Commuter!BT11+Input_Commuter!DE11 -> 0 | CE11: =Input_Commuter!BV11+Input_Commuter!DG11 -> 0 | CF11: =Input_Commuter!AA11+Input_Commuter!AC11 -> 0 | CG11: =Input_Commuter!AE11 -> 0 | CH11: =Input_Commuter!AG11 -> 0 | CI11: =Input_Commuter!AI11 -> 0 | CJ11: =Input_Commuter!AK11 -> 0
C12: 1991 | CA12: =Input_Commuter!BL12+Input_Commuter!BN12+Input_Commuter!CW12+Input_Commuter!CY12 -> 0 | CB12: =Input_Commuter!BP12+Input_Commuter!DA12 -> 0 | CC12: =Input_Commuter!BR12+Input_Commuter!DC12 -> 0 | CD12: =Input_Commuter!BT12+Input_Commuter!DE12 -> 0 | CE12: =Input_Commuter!BV12+Input_Commuter!DG12 -> 0 | CF12: =Input_Commuter!AA12+Input_Commuter!AC12 -> 0 | CG12: =Input_Commuter!AE12 -> 0 | CH12: =Input_Commuter!AG12 -> 0 | CI12: =Input_Commuter!AI12 -> 0 | CJ12: =Input_Commuter!AK12 -> 0
C13: 1992 | CA13: =Input_Commuter!BL13+Input_Commuter!BN13+Input_Commuter!CW13+Input_Commuter!CY13 -> 0 | CB13: =Input_Commuter!BP13+Input_Commuter!DA13 -> 0 | CC13: =Input_Commuter!BR13+Input_Commuter!DC13 -> 0 | CD13: =Input_Commuter!BT13+Input_Commuter!DE13 -> 0 | CE13: =Input_Commuter!BV13+Input_Commuter!DG13 -> 0 | CF13: =Input_Commuter!AA13+Input_Commuter!AC13 -> 0 | CG13: =Input_Commuter!AE13 -> 0 | CH13: =Input_Commuter!AG13 -> 0 | CI13: =Input_Commuter!AI13 -> 0 | CJ13: =Input_Commuter!AK13 -> 0
C14: 1993 | CA14: =Input_Commuter!BL14+Input_Commuter!BN14+Input_Commuter!CW14+Input_Commuter!CY14 -> 0 | CB14: =Input_Commuter!BP14+Input_Commuter!DA14 -> 0 | CC14: =Input_Commuter!BR14+Input_Commuter!DC14 -> 0 | CD14: =Input_Commuter!BT14+Input_Commuter!DE14 -> 0 | CE14: =Input_Commuter!BV14+Input_Commuter!DG14 -> 0 | CF14: =Input_Commuter!AA14+Input_Commuter!AC14 -> 0 | CG14: =Input_Commuter!AE14 -> 0 | CH14: =Input_Commuter!AG14 -> 0 | CI14: =Input_Commuter!AI14 -> 0 | CJ14: =Input_Commuter!AK14 -> 0
C15: 1994 | CA15: =Input_Commuter!BL15+Input_Commuter!BN15+Input_Commuter!CW15+Input_Commuter!CY15 -> 0 | CB15: =Input_Commuter!BP15+Input_Commuter!DA15 -> 0 | CC15: =Input_Commuter!BR15+Input_Commuter!DC15 -> 0 | CD15: =Input_Commuter!BT15+Input_Commuter!DE15 -> 0 | CE15: =Input_Commuter!BV15+Input_Commuter!DG15 -> 0 | CF15: =Input_Commuter!AA15+Input_Commuter!AC15 -> 0 | CG15: =Input_Commuter!AE15 -> 0 | CH15: =Input_Commuter!AG15 -> 0 | CI15: =Input_Commuter!AI15 -> 0 | CJ15: =Input_Commuter!AK15 -> 0
C16: 1995 | CA16: =Input_Commuter!BL16+Input_Commuter!BN16+Input_Commuter!CW16+Input_Commuter!CY16 -> 0 | CB16: =Input_Commuter!BP16+Input_Commuter!DA16 -> 0 | CC16: =Input_Commuter!BR16+Input_Commuter!DC16 -> 0 | CD16: =Input_Commuter!BT16+Input_Commuter!DE16 -> 0 | CE16: =Input_Commuter!BV16+Input_Commuter!DG16 -> 0 | CF16: =Input_Commuter!AA16+Input_Commuter!AC16 -> 0 | CG16: =Input_Commuter!AE16 -> 0 | CH16: =Input_Commuter!AG16 -> 0 | CI16: =Input_Commuter!AI16 -> 0 | CJ16: =Input_Commuter!AK16 -> 0
C17: 1996 | CA17: =Input_Commuter!BL17+Input_Commuter!BN17+Input_Commuter!CW17+Input_Commuter!CY17 -> 0 | CB17: =Input_Commuter!BP17+Input_Commuter!DA17 -> 0 | CC17: =Input_Commuter!BR17+Input_Commuter!DC17 -> 0 | CD17: =Input_Commuter!BT17+Input_Commuter!DE17 -> 0 | CE17: =Input_Commuter!BV17+Input_Commuter!DG17 -> 0 | CF17: =Input_Commuter!AA17+Input_Commuter!AC17 -> 0 | CG17: =Input_Commuter!AE17 -> 0 | CH17: =Input_Commuter!AG17 -> 0 | CI17: =Input_Commuter!AI17 -> 0 | CJ17: =Input_Commuter!AK17 -> 0
C18: 1997 | CA18: =Input_Commuter!BL18+Input_Commuter!BN18+Input_Commuter!CW18+Input_Commuter!CY18 -> 0 | CB18: =Input_Commuter!BP18+Input_Commuter!DA18 -> 0 | CC18: =Input_Commuter!BR18+Input_Commuter!DC18 -> 0 | CD18: =Input_Commuter!BT18+Input_Commuter!DE18 -> 0 | CE18: =Input_Commuter!BV18+Input_Commuter!DG18 -> 0 | CF18: =Input_Commuter!AA18+Input_Commuter!AC18 -> 0 | CG18: =Input_Commuter!AE18 -> 0 | CH18: =Input_Commuter!AG18 -> 0 | CI18: =Input_Commuter!AI18 -> 0 | CJ18: =Input_Commuter!AK18 -> 0
C19: 1998 | CA19: =Input_Commuter!BL19+Input_Commuter!BN19+Input_Commuter!CW19+Input_Commuter!CY19 -> 0 | CB19: =Input_Commuter!BP19+Input_Commuter!DA19 -> 0 | CC19: =Input_Commuter!BR19+Input_Commuter!DC19 -> 0 | CD19: =Input_Commuter!BT19+Input_Commuter!DE19 -> 0 | CE19: =Input_Commuter!BV19+Input_Commuter!DG19 -> 0 | CF19: =Input_Commuter!AA19+Input_Commuter!AC19 -> 0 | CG19: =Input_Commuter!AE19 -> 0 | CH19: =Input_Commuter!AG19 -> 0 | CI19: =Input_Commuter!AI19 -> 0 | CJ19: =Input_Commuter!AK19 -> 0
C20: 1999 | CA20: =Input_Commuter!BL20+Input_Commuter!BN20+Input_Commuter!CW20+Input_Commuter!CY20 -> 0 | CB20: =Input_Commuter!BP20+Input_Commuter!DA20 -> 0 | CC20: =Input_Commuter!BR20+Input_Commuter!DC20 -> 0 | CD20: =Input_Commuter!BT20+Input_Commuter!DE20 -> 0 | CE20: =Input_Commuter!BV20+Input_Commuter!DG20 -> 0 | CF20: =Input_Commuter!AA20+Input_Commuter!AC20 -> 0 | CG20: =Input_Commuter!AE20 -> 0 | CH20: =Input_Commuter!AG20 -> 0 | CI20: =Input_Commuter!AI20 -> 0 | CJ20: =Input_Commuter!AK20 -> 0
C21: 2000 | CA21: =Input_Commuter!BL21+Input_Commuter!BN21+Input_Commuter!CW21+Input_Commuter!CY21 -> 0 | CB21: =Input_Commuter!BP21+Input_Commuter!DA21 -> 0 | CC21: =Input_Commuter!BR21+Input_Commuter!DC21 -> 0 | CD21: =Input_Commuter!BT21+Input_Commuter!DE21 -> 0 | CE21: =Input_Commuter!BV21+Input_Commuter!DG21 -> 0 | CF21: =Input_Commuter!AA21+Input_Commuter!AC21 -> 0 | CG21: =Input_Commuter!AE21 -> 0 | CH21: =Input_Commuter!AG21 -> 0 | CI21: =Input_Commuter!AI21 -> 0 | CJ21: =Input_Commuter!AK21 -> 0
C22: 2001 | CA22: =Input_Commuter!BL22+Input_Commuter!BN22+Input_Commuter!CW22+Input_Commuter!CY22 -> 0 | CB22: =Input_Commuter!BP22+Input_Commuter!DA22 -> 0 | CC22: =Input_Commuter!BR22+Input_Commuter!DC22 -> 0 | CD22: =Input_Commuter!BT22+Input_Commuter!DE22 -> 0 | CE22: =Input_Commuter!BV22+Input_Commuter!DG22 -> 0 | CF22: =Input_Commuter!AA22+Input_Commuter!AC22 -> 0 | CG22: =Input_Commuter!AE22 -> 0 | CH22: =Input_Commuter!AG22 -> 0 | CI22: =Input_Commuter!AI22 -> 0 | CJ22: =Input_Commuter!AK22 -> 0
C23: 2002 | CA23: =Input_Commuter!BL23+Input_Commuter!BN23+Input_Commuter!CW23+Input_Commuter!CY23 -> 0 | CB23: =Input_Commuter!BP23+Input_Commuter!DA23 -> 0 | CC23: =Input_Commuter!BR23+Input_Commuter!DC23 -> 0 | CD23: =Input_Commuter!BT23+Input_Commuter!DE23 -> 0 | CE23: =Input_Commuter!BV23+Input_Commuter!DG23 -> 0 | CF23: =Input_Commuter!AA23+Input_Commuter!AC23 -> 0 | CG23: =Input_Commuter!AE23 -> 0 | CH23: =Input_Commuter!AG23 -> 0 | CI23: =Input_Commuter!AI23 -> 0 | CJ23: =Input_Commuter!AK23 -> 0
C24: 2003 | CA24: =Input_Commuter!BL24+Input_Commuter!BN24+Input_Commuter!CW24+Input_Commuter!CY24 -> 0 | CB24: =Input_Commuter!BP24+Input_Commuter!DA24 -> 0 | CC24: =Input_Commuter!BR24+Input_Commuter!DC24 -> 0 | CD24: =Input_Commuter!BT24+Input_Commuter!DE24 -> 0 | CE24: =Input_Commuter!BV24+Input_Commuter!DG24 -> 0 | CF24: =Input_Commuter!AA24+Input_Commuter!AC24 -> 0 | CG24: =Input_Commuter!AE24 -> 0 | CH24: =Input_Commuter!AG24 -> 0 | CI24: =Input_Commuter!AI24 -> 0 | CJ24: =Input_Commuter!AK24 -> 0
C25: 2004 | CA25: =Input_Commuter!BL25+Input_Commuter!BN25+Input_Commuter!CW25+Input_Commuter!CY25 -> 0 | CB25: =Input_Commuter!BP25+Input_Commuter!DA25 -> 0 | CC25: =Input_Commuter!BR25+Input_Commuter!DC25 -> 0 | CD25: =Input_Commuter!BT25+Input_Commuter!DE25 -> 0 | CE25: =Input_Commuter!BV25+Input_Commuter!DG25 -> 0 | CF25: =Input_Commuter!AA25+Input_Commuter!AC25 -> 0 | CG25: =Input_Commuter!AE25 -> 0 | CH25: =Input_Commuter!AG25 -> 0 | CI25: =Input_Commuter!AI25 -> 0 | CJ25: =Input_Commuter!AK25 -> 0
C26: 2005 | CA26: =Input_Commuter!BL26+Input_Commuter!BN26+Input_Commuter!CW26+Input_Commuter!CY26 -> 0 | CB26: =Input_Commuter!BP26+Input_Commuter!DA26 -> 0 | CC26: =Input_Commuter!BR26+Input_Commuter!DC26 -> 0 | CD26: =Input_Commuter!BT26+Input_Commuter!DE26 -> 0 | CE26: =Input_Commuter!BV26+Input_Commuter!DG26 -> 0 | CF26: =Input_Commuter!AA26+Input_Commuter!AC26 -> 0 | CG26: =Input_Commuter!AE26 -> 0 | CH26: =Input_Commuter!AG26 -> 0 | CI26: =Input_Commuter!AI26 -> 0 | CJ26: =Input_Commuter!AK26 -> 0
C27: 2006 | CA27: =Input_Commuter!BL27+Input_Commuter!BN27+Input_Commuter!CW27+Input_Commuter!CY27 -> 0 | CB27: =Input_Commuter!BP27+Input_Commuter!DA27 -> 0 | CC27: =Input_Commuter!BR27+Input_Commuter!DC27 -> 0 | CD27: =Input_Commuter!BT27+Input_Commuter!DE27 -> 0 | CE27: =Input_Commuter!BV27+Input_Commuter!DG27 -> 0 | CF27: =Input_Commuter!AA27+Input_Commuter!AC27 -> 0 | CG27: =Input_Commuter!AE27 -> 0 | CH27: =Input_Commuter!AG27 -> 0 | CI27: =Input_Commuter!AI27 -> 0 | CJ27: =Input_Commuter!AK27 -> 0
C28: 2007 | CA28: =Input_Commuter!BL28+Input_Commuter!BN28+Input_Commuter!CW28+Input_Commuter!CY28 -> 0 | CB28: =Input_Commuter!BP28+Input_Commuter!DA28 -> 0 | CC28: =Input_Commuter!BR28+Input_Commuter!DC28 -> 0 | CD28: =Input_Commuter!BT28+Input_Commuter!DE28 -> 0 | CE28: =Input_Commuter!BV28+Input_Commuter!DG28 -> 0 | CF28: =Input_Commuter!AA28+Input_Commuter!AC28 -> 0 | CG28: =Input_Commuter!AE28 -> 0 | CH28: =Input_Commuter!AG28 -> 0 | CI28: =Input_Commuter!AI28 -> 0 | CJ28: =Input_Commuter!AK28 -> 0
C29: 2008 | CA29: =Input_Commuter!BL29+Input_Commuter!BN29+Input_Commuter!CW29+Input_Commuter!CY29 -> 0 | CB29: =Input_Commuter!BP29+Input_Commuter!DA29 -> 0 | CC29: =Input_Commuter!BR29+Input_Commuter!DC29 -> 0 | CD29: =Input_Commuter!BT29+Input_Commuter!DE29 -> 0 | CE29: =Input_Commuter!BV29+Input_Commuter!DG29 -> 0 | CF29: =Input_Commuter!AA29+Input_Commuter!AC29 -> 0 | CG29: =Input_Commuter!AE29 -> 0 | CH29: =Input_Commuter!AG29 -> 0 | CI29: =Input_Commuter!AI29 -> 0 | CJ29: =Input_Commuter!AK29 -> 0
C30: 2009 | CA30: =Input_Commuter!BL30+Input_Commuter!BN30+Input_Commuter!CW30+Input_Commuter!CY30 -> 0 | CB30: =Input_Commuter!BP30+Input_Commuter!DA30 -> 0 | CC30: =Input_Commuter!BR30+Input_Commuter!DC30 -> 0 | CD30: =Input_Commuter!BT30+Input_Commuter!DE30 -> 0 | CE30: =Input_Commuter!BV30+Input_Commuter!DG30 -> 0 | CF30: =Input_Commuter!AA30+Input_Commuter!AC30 -> 0 | CG30: =Input_Commuter!AE30 -> 0 | CH30: =Input_Commuter!AG30 -> 0 | CI30: =Input_Commuter!AI30 -> 0 | CJ30: =Input_Commuter!AK30 -> 0
C31: 2010 | CA31: =Input_Commuter!BL31+Input_Commuter!BN31+Input_Commuter!CW31+Input_Commuter!CY31 -> 0 | CB31: =Input_Commuter!BP31+Input_Commuter!DA31 -> 0 | CC31: =Input_Commuter!BR31+Input_Commuter!DC31 -> 0 | CD31: =Input_Commuter!BT31+Input_Commuter!DE31 -> 0 | CE31: =Input_Commuter!BV31+Input_Commuter!DG31 -> 0 | CF31: =Input_Commuter!AA31+Input_Commuter!AC31 -> 0 | CG31: =Input_Commuter!AE31 -> 0 | CH31: =Input_Commuter!AG31 -> 0 | CI31: =Input_Commuter!AI31 -> 0 | CJ31: =Input_Commuter!AK31 -> 0
C32: 2011 | CA32: =Input_Commuter!BL32+Input_Commuter!BN32+Input_Commuter!CW32+Input_Commuter!CY32 -> 0 | CB32: =Input_Commuter!BP32+Input_Commuter!DA32 -> 0 | CC32: =Input_Commuter!BR32+Input_Commuter!DC32 -> 0 | CD32: =Input_Commuter!BT32+Input_Commuter!DE32 -> 0 | CE32: =Input_Commuter!BV32+Input_Commuter!DG32 -> 0 | CF32: =Input_Commuter!AA32+Input_Commuter!AC32 -> 0 | CG32: =Input_Commuter!AE32 -> 0 | CH32: =Input_Commuter!AG32 -> 0 | CI32: =Input_Commuter!AI32 -> 0 | CJ32: =Input_Commuter!AK32 -> 0
C33: 2012 | CA33: =Input_Commuter!BL33+Input_Commuter!BN33+Input_Commuter!CW33+Input_Commuter!CY33 -> 0 | CB33: =Input_Commuter!BP33+Input_Commuter!DA33 -> 0 | CC33: =Input_Commuter!BR33+Input_Commuter!DC33 -> 0 | CD33: =Input_Commuter!BT33+Input_Commuter!DE33 -> 0 | CE33: =Input_Commuter!BV33+Input_Commuter!DG33 -> 0 | CF33: =Input_Commuter!AA33+Input_Commuter!AC33 -> 0 | CG33: =Input_Commuter!AE33 -> 0 | CH33: =Input_Commuter!AG33 -> 0 | CI33: =Input_Commuter!AI33 -> 0 | CJ33: =Input_Commuter!AK33 -> 0
C34: 2013 | CA34: =Input_Commuter!BL34+Input_Commuter!BN34+Input_Commuter!CW34+Input_Commuter!CY34 -> 0 | CB34: =Input_Commuter!BP34+Input_Commuter!DA34 -> 0 | CC34: =Input_Commuter!BR34+Input_Commuter!DC34 -> 0 | CD34: =Input_Commuter!BT34+Input_Commuter!DE34 -> 0 | CE34: =Input_Commuter!BV34+Input_Commuter!DG34 -> 0 | CF34: =Input_Commuter!AA34+Input_Commuter!AC34 -> 0 | CG34: =Input_Commuter!AE34 -> 0 | CH34: =Input_Commuter!AG34 -> 0 | CI34: =Input_Commuter!AI34 -> 0 | CJ34: =Input_Commuter!AK34 -> 0
C35: 2014 | D35: 930040648.4 | E35: 109551911.6 | F35: 21146909.52 | G35: 23609 | H35: 4510 | I35: 6688 | J35: 2407 | K35: 6201 | L35: 11186689 | M35: 1340112 | AC35: 258998 | AI35: 605949 | AR35: 921932 | AV35: 182231 | AW35: 38783 | AX35: 1389 | AY35: 1886 | BX35: 215642325 | BY35: 71861 | BZ35: 32596 | CA35: =Input_Commuter!BL35+Input_Commuter!BN35+Input_Commuter!CW35+Input_Commuter!CY35 -> 156193 | CB35: =Input_Commuter!BP35+Input_Commuter!DA35 -> 36346111.1 | CC35: =Input_Commuter!BR35+Input_Commuter!DC35 -> 812203.6 | CD35: =Input_Commuter!BT35+Input_Commuter!DE35 -> 187431.6 | CE35: =Input_Commuter!BV35+Input_Commuter!DG35 -> 0 | CF35: =Input_Commuter!AA35+Input_Commuter!AC35 -> 1127113.6 | CG35: =Input_Commuter!AE35 -> 24796499.2 | CH35: =Input_Commuter!AG35 -> 18597374.4 | CI35: =Input_Commuter!AI35 -> 338134.08 | CJ35: =Input_Commuter!AK35 -> 0 | CK35: 20673894 | CL35: 2444429 | CO35: 2806848 | CR35: 4547080 | CX35: 3150 | DG35: 112959 | DJ35: 342612 | DQ35: 74570000
C36: 2015 | CA36: =Input_Commuter!BL36+Input_Commuter!BN36+Input_Commuter!CW36+Input_Commuter!CY36 -> 0 | CB36: =Input_Commuter!BP36+Input_Commuter!DA36 -> 0 | CC36: =Input_Commuter!BR36+Input_Commuter!DC36 -> 0 | CD36: =Input_Commuter!BT36+Input_Commuter!DE36 -> 0 | CE36: =Input_Commuter!BV36+Input_Commuter!DG36 -> 0 | CF36: =Input_Commuter!AA36+Input_Commuter!AC36 -> 0 | CG36: =Input_Commuter!AE36 -> 0 | CH36: =Input_Commuter!AG36 -> 0 | CI36: =Input_Commuter!AI36 -> 0 | CJ36: =Input_Commuter!AK36 -> 0
C37: 2016 | CA37: =Input_Commuter!BL37+Input_Commuter!BN37+Input_Commuter!CW37+Input_Commuter!CY37 -> 0 | CB37: =Input_Commuter!BP37+Input_Commuter!DA37 -> 0 | CC37: =Input_Commuter!BR37+Input_Commuter!DC37 -> 0 | CD37: =Input_Commuter!BT37+Input_Commuter!DE37 -> 0 | CE37: =Input_Commuter!BV37+Input_Commuter!DG37 -> 0 | CF37: =Input_Commuter!AA37+Input_Commuter!AC37 -> 0 | CG37: =Input_Commuter!AE37 -> 0 | CH37: =Input_Commuter!AG37 -> 0 | CI37: =Input_Commuter!AI37 -> 0 | CJ37: =Input_Commuter!AK37 -> 0
C38: 2017 | D38: 0 | E38: 0 | F38: 0 | G38: 28125 | H38: 3418 | J38: 1980 | K38: =8129-J38 -> 6149 | L38: 10970240 | M38: 1297420.944 | AC38: 149589 | AI38: 620381 | AR38: 708352.607 | AV38: 202071 | AW38: 34330 | AZ38: 1797 | BA38: 599 | BX38: 217431719.5 | BY38: 71873.21805 | BZ38: 34540.9632 | CA38: =Input_Commuter!BL38+Input_Commuter!BN38+Input_Commuter!CW38+Input_Commuter!CY38 -> 112180.2 | CB38: =Input_Commuter!BP38+Input_Commuter!DA38 -> 43021106.7 | CC38: =Input_Commuter!BR38+Input_Commuter!DC38 -> 2430571 | CD38: =Input_Commuter!BT38+Input_Commuter!DE38 -> 224360.4 | CE38: =Input_Commuter!BV38+Input_Commuter!DG38 -> 0 | CF38: =Input_Commuter!AA38+Input_Commuter!AC38 -> 596098.88 | CG38: =Input_Commuter!AE38 -> 32097632 | CH38: =Input_Commuter!AG38 -> 5960988.8 | CI38: =Input_Commuter!AI38 -> 137561.28 | CJ38: =Input_Commuter!AK38 -> 0 | CK38: 35559443.13 | CL38: 3664614.71 | CM38: 70000 | CO38: 1288391.66 | CR38: 5106311.34 | CX38: 2305.58 | DB38: 182.11 | DF38: 337830830 | DH38: 205163 | DI38: 63257 | DJ38: 671 | DK38: 165334 | DQ38: 218720938.8
C39: 2018 | CA39: =Input_Commuter!BL39+Input_Commuter!BN39+Input_Commuter!CW39+Input_Commuter!CY39 -> 0 | CB39: =Input_Commuter!BP39+Input_Commuter!DA39 -> 0 | CC39: =Input_Commuter!BR39+Input_Commuter!DC39 -> 0 | CD39: =Input_Commuter!BT39+Input_Commuter!DE39 -> 0 | CE39: =Input_Commuter!BV39+Input_Commuter!DG39 -> 0 | CF39: =Input_Commuter!AA39+Input_Commuter!AC39 -> 0 | CG39: =Input_Commuter!AE39 -> 0 | CH39: =Input_Commuter!AG39 -> 0 | CI39: =Input_Commuter!AI39 -> 0 | CJ39: =Input_Commuter!AK39 -> 0
C40: 2019 | CA40: =Input_Commuter!BL40+Input_Commuter!BN40+Input_Commuter!CW40+Input_Commuter!CY40 -> 0 | CB40: =Input_Commuter!BP40+Input_Commuter!DA40 -> 0 | CC40: =Input_Commuter!BR40+Input_Commuter!DC40 -> 0 | CD40: =Input_Commuter!BT40+Input_Commuter!DE40 -> 0 | CE40: =Input_Commuter!BV40+Input_Commuter!DG40 -> 0 | CF40: =Input_Commuter!AA40+Input_Commuter!AC40 -> 0 | CG40: =Input_Commuter!AE40 -> 0 | CH40: =Input_Commuter!AG40 -> 0 | CI40: =Input_Commuter!AI40 -> 0 | CJ40: =Input_Commuter!AK40 -> 0
C41: 2020 | CA41: =Input_Commuter!BL41+Input_Commuter!BN41+Input_Commuter!CW41+Input_Commuter!CY41 -> 0 | CB41: =Input_Commuter!BP41+Input_Commuter!DA41 -> 0 | CC41: =Input_Commuter!BR41+Input_Commuter!DC41 -> 0 | CD41: =Input_Commuter!BT41+Input_Commuter!DE41 -> 0 | CE41: =Input_Commuter!BV41+Input_Commuter!DG41 -> 0 | CF41: =Input_Commuter!AA41+Input_Commuter!AC41 -> 0 | CG41: =Input_Commuter!AE41 -> 0 | CH41: =Input_Commuter!AG41 -> 0 | CI41: =Input_Commuter!AI41 -> 0 | CJ41: =Input_Commuter!AK41 -> 0
C42: 2021 | CA42: =Input_Commuter!BL42+Input_Commuter!BN42+Input_Commuter!CW42+Input_Commuter!CY42 -> 0 | CB42: =Input_Commuter!BP42+Input_Commuter!DA42 -> 0 | CC42: =Input_Commuter!BR42+Input_Commuter!DC42 -> 0 | CD42: =Input_Commuter!BT42+Input_Commuter!DE42 -> 0 | CE42: =Input_Commuter!BV42+Input_Commuter!DG42 -> 0 | CF42: =Input_Commuter!AA42+Input_Commuter!AC42 -> 0 | CG42: =Input_Commuter!AE42 -> 0 | CH42: =Input_Commuter!AG42 -> 0 | CI42: =Input_Commuter!AI42 -> 0 | CJ42: =Input_Commuter!AK42 -> 0
C43: 2022 | CA43: =Input_Commuter!BL43+Input_Commuter!BN43+Input_Commuter!CW43+Input_Commuter!CY43 -> 0 | CB43: =Input_Commuter!BP43+Input_Commuter!DA43 -> 0 | CC43: =Input_Commuter!BR43+Input_Commuter!DC43 -> 0 | CD43: =Input_Commuter!BT43+Input_Commuter!DE43 -> 0 | CE43: =Input_Commuter!BV43+Input_Commuter!DG43 -> 0 | CF43: =Input_Commuter!AA43+Input_Commuter!AC43 -> 0 | CG43: =Input_Commuter!AE43 -> 0 | CH43: =Input_Commuter!AG43 -> 0 | CI43: =Input_Commuter!AI43 -> 0 | CJ43: =Input_Commuter!AK43 -> 0
C44: 2023 | CA44: =Input_Commuter!BL44+Input_Commuter!BN44+Input_Commuter!CW44+Input_Commuter!CY44 -> 0 | CB44: =Input_Commuter!BP44+Input_Commuter!DA44 -> 0 | CC44: =Input_Commuter!BR44+Input_Commuter!DC44 -> 0 | CD44: =Input_Commuter!BT44+Input_Commuter!DE44 -> 0 | CE44: =Input_Commuter!BV44+Input_Commuter!DG44 -> 0 | CF44: =Input_Commuter!AA44+Input_Commuter!AC44 -> 0 | CG44: =Input_Commuter!AE44 -> 0 | CH44: =Input_Commuter!AG44 -> 0 | CI44: =Input_Commuter!AI44 -> 0 | CJ44: =Input_Commuter!AK44 -> 0
C45: 2024 | CA45: =Input_Commuter!BL45+Input_Commuter!BN45+Input_Commuter!CW45+Input_Commuter!CY45 -> 0 | CB45: =Input_Commuter!BP45+Input_Commuter!DA45 -> 0 | CC45: =Input_Commuter!BR45+Input_Commuter!DC45 -> 0 | CD45: =Input_Commuter!BT45+Input_Commuter!DE45 -> 0 | CE45: =Input_Commuter!BV45+Input_Commuter!DG45 -> 0 | CF45: =Input_Commuter!AA45+Input_Commuter!AC45 -> 0 | CG45: =Input_Commuter!AE45 -> 0 | CH45: =Input_Commuter!AG45 -> 0 | CI45: =Input_Commuter!AI45 -> 0 | CJ45: =Input_Commuter!AK45 -> 0
C46: 2025 | CA46: =Input_Commuter!BL46+Input_Commuter!BN46+Input_Commuter!CW46+Input_Commuter!CY46 -> 0 | CB46: =Input_Commuter!BP46+Input_Commuter!DA46 -> 0 | CC46: =Input_Commuter!BR46+Input_Commuter!DC46 -> 0 | CD46: =Input_Commuter!BT46+Input_Commuter!DE46 -> 0 | CE46: =Input_Commuter!BV46+Input_Commuter!DG46 -> 0 | CF46: =Input_Commuter!AA46+Input_Commuter!AC46 -> 0 | CG46: =Input_Commuter!AE46 -> 0 | CH46: =Input_Commuter!AG46 -> 0 | CI46: =Input_Commuter!AI46 -> 0 | CJ46: =Input_Commuter!AK46 -> 0
C47: 2026 | CA47: =Input_Commuter!BL47+Input_Commuter!BN47+Input_Commuter!CW47+Input_Commuter!CY47 -> 0 | CB47: =Input_Commuter!BP47+Input_Commuter!DA47 -> 0 | CC47: =Input_Commuter!BR47+Input_Commuter!DC47 -> 0 | CD47: =Input_Commuter!BT47+Input_Commuter!DE47 -> 0 | CE47: =Input_Commuter!BV47+Input_Commuter!DG47 -> 0 | CF47: =Input_Commuter!AA47+Input_Commuter!AC47 -> 0 | CG47: =Input_Commuter!AE47 -> 0 | CH47: =Input_Commuter!AG47 -> 0 | CI47: =Input_Commuter!AI47 -> 0 | CJ47: =Input_Commuter!AK47 -> 0
C48: 2027 | CA48: =Input_Commuter!BL48+Input_Commuter!BN48+Input_Commuter!CW48+Input_Commuter!CY48 -> 0 | CB48: =Input_Commuter!BP48+Input_Commuter!DA48 -> 0 | CC48: =Input_Commuter!BR48+Input_Commuter!DC48 -> 0 | CD48: =Input_Commuter!BT48+Input_Commuter!DE48 -> 0 | CE48: =Input_Commuter!BV48+Input_Commuter!DG48 -> 0 | CF48: =Input_Commuter!AA48+Input_Commuter!AC48 -> 0 | CG48: =Input_Commuter!AE48 -> 0 | CH48: =Input_Commuter!AG48 -> 0 | CI48: =Input_Commuter!AI48 -> 0 | CJ48: =Input_Commuter!AK48 -> 0
C49: 2028 | CA49: =Input_Commuter!BL49+Input_Commuter!BN49+Input_Commuter!CW49+Input_Commuter!CY49 -> 0 | CB49: =Input_Commuter!BP49+Input_Commuter!DA49 -> 0 | CC49: =Input_Commuter!BR49+Input_Commuter!DC49 -> 0 | CD49: =Input_Commuter!BT49+Input_Commuter!DE49 -> 0 | CE49: =Input_Commuter!BV49+Input_Commuter!DG49 -> 0 | CF49: =Input_Commuter!AA49+Input_Commuter!AC49 -> 0 | CG49: =Input_Commuter!AE49 -> 0 | CH49: =Input_Commuter!AG49 -> 0 | CI49: =Input_Commuter!AI49 -> 0 | CJ49: =Input_Commuter!AK49 -> 0
C50: 2029 | CA50: =Input_Commuter!BL50+Input_Commuter!BN50+Input_Commuter!CW50+Input_Commuter!CY50 -> 0 | CB50: =Input_Commuter!BP50+Input_Commuter!DA50 -> 0 | CC50: =Input_Commuter!BR50+Input_Commuter!DC50 -> 0 | CD50: =Input_Commuter!BT50+Input_Commuter!DE50 -> 0 | CE50: =Input_Commuter!BV50+Input_Commuter!DG50 -> 0 | CF50: =Input_Commuter!AA50+Input_Commuter!AC50 -> 0 | CG50: =Input_Commuter!AE50 -> 0 | CH50: =Input_Commuter!AG50 -> 0 | CI50: =Input_Commuter!AI50 -> 0 | CJ50: =Input_Commuter!AK50 -> 0
C51: 2030 | CA51: =Input_Commuter!BL51+Input_Commuter!BN51+Input_Commuter!CW51+Input_Commuter!CY51 -> 0 | CB51: =Input_Commuter!BP51+Input_Commuter!DA51 -> 0 | CC51: =Input_Commuter!BR51+Input_Commuter!DC51 -> 0 | CD51: =Input_Commuter!BT51+Input_Commuter!DE51 -> 0 | CE51: =Input_Commuter!BV51+Input_Commuter!DG51 -> 0 | CF51: =Input_Commuter!AA51+Input_Commuter!AC51 -> 0 | CG51: =Input_Commuter!AE51 -> 0 | CH51: =Input_Commuter!AG51 -> 0 | CI51: =Input_Commuter!AI51 -> 0 | CJ51: =Input_Commuter!AK51 -> 0
C52: 2031 | CA52: =Input_Commuter!BL52+Input_Commuter!BN52+Input_Commuter!CW52+Input_Commuter!CY52 -> 0 | CB52: =Input_Commuter!BP52+Input_Commuter!DA52 -> 0 | CC52: =Input_Commuter!BR52+Input_Commuter!DC52 -> 0 | CD52: =Input_Commuter!BT52+Input_Commuter!DE52 -> 0 | CE52: =Input_Commuter!BV52+Input_Commuter!DG52 -> 0 | CF52: =Input_Commuter!AA52+Input_Commuter!AC52 -> 0 | CG52: =Input_Commuter!AE52 -> 0 | CH52: =Input_Commuter!AG52 -> 0 | CI52: =Input_Commuter!AI52 -> 0 | CJ52: =Input_Commuter!AK52 -> 0
C53: 2032 | CA53: =Input_Commuter!BL53+Input_Commuter!BN53+Input_Commuter!CW53+Input_Commuter!CY53 -> 0 | CB53: =Input_Commuter!BP53+Input_Commuter!DA53 -> 0 | CC53: =Input_Commuter!BR53+Input_Commuter!DC53 -> 0 | CD53: =Input_Commuter!BT53+Input_Commuter!DE53 -> 0 | CE53: =Input_Commuter!BV53+Input_Commuter!DG53 -> 0 | CF53: =Input_Commuter!AA53+Input_Commuter!AC53 -> 0 | CG53: =Input_Commuter!AE53 -> 0 | CH53: =Input_Commuter!AG53 -> 0 | CI53: =Input_Commuter!AI53 -> 0 | CJ53: =Input_Commuter!AK53 -> 0
C54: 2033 | CA54: =Input_Commuter!BL54+Input_Commuter!BN54+Input_Commuter!CW54+Input_Commuter!CY54 -> 0 | CB54: =Input_Commuter!BP54+Input_Commuter!DA54 -> 0 | CC54: =Input_Commuter!BR54+Input_Commuter!DC54 -> 0 | CD54: =Input_Commuter!BT54+Input_Commuter!DE54 -> 0 | CE54: =Input_Commuter!BV54+Input_Commuter!DG54 -> 0 | CF54: =Input_Commuter!AA54+Input_Commuter!AC54 -> 0 | CG54: =Input_Commuter!AE54 -> 0 | CH54: =Input_Commuter!AG54 -> 0 | CI54: =Input_Commuter!AI54 -> 0 | CJ54: =Input_Commuter!AK54 -> 0
C55: 2034 | CA55: =Input_Commuter!BL55+Input_Commuter!BN55+Input_Commuter!CW55+Input_Commuter!CY55 -> 0 | CB55: =Input_Commuter!BP55+Input_Commuter!DA55 -> 0 | CC55: =Input_Commuter!BR55+Input_Commuter!DC55 -> 0 | CD55: =Input_Commuter!BT55+Input_Commuter!DE55 -> 0 | CE55: =Input_Commuter!BV55+Input_Commuter!DG55 -> 0 | CF55: =Input_Commuter!AA55+Input_Commuter!AC55 -> 0 | CG55: =Input_Commuter!AE55 -> 0 | CH55: =Input_Commuter!AG55 -> 0 | CI55: =Input_Commuter!AI55 -> 0 | CJ55: =Input_Commuter!AK55 -> 0
C56: 2035 | CA56: =Input_Commuter!BL56+Input_Commuter!BN56+Input_Commuter!CW56+Input_Commuter!CY56 -> 0 | CB56: =Input_Commuter!BP56+Input_Commuter!DA56 -> 0 | CC56: =Input_Commuter!BR56+Input_Commuter!DC56 -> 0 | CD56: =Input_Commuter!BT56+Input_Commuter!DE56 -> 0 | CE56: =Input_Commuter!BV56+Input_Commuter!DG56 -> 0 | CF56: =Input_Commuter!AA56+Input_Commuter!AC56 -> 0 | CG56: =Input_Commuter!AE56 -> 0 | CH56: =Input_Commuter!AG56 -> 0 | CI56: =Input_Commuter!AI56 -> 0 | CJ56: =Input_Commuter!AK56 -> 0
C57: 2036 | CA57: =Input_Commuter!BL57+Input_Commuter!BN57+Input_Commuter!CW57+Input_Commuter!CY57 -> 0 | CB57: =Input_Commuter!BP57+Input_Commuter!DA57 -> 0 | CC57: =Input_Commuter!BR57+Input_Commuter!DC57 -> 0 | CD57: =Input_Commuter!BT57+Input_Commuter!DE57 -> 0 | CE57: =Input_Commuter!BV57+Input_Commuter!DG57 -> 0 | CF57: =Input_Commuter!AA57+Input_Commuter!AC57 -> 0 | CG57: =Input_Commuter!AE57 -> 0 | CH57: =Input_Commuter!AG57 -> 0 | CI57: =Input_Commuter!AI57 -> 0 | CJ57: =Input_Commuter!AK57 -> 0
C58: 2037 | CA58: =Input_Commuter!BL58+Input_Commuter!BN58+Input_Commuter!CW58+Input_Commuter!CY58 -> 0 | CB58: =Input_Commuter!BP58+Input_Commuter!DA58 -> 0 | CC58: =Input_Commuter!BR58+Input_Commuter!DC58 -> 0 | CD58: =Input_Commuter!BT58+Input_Commuter!DE58 -> 0 | CE58: =Input_Commuter!BV58+Input_Commuter!DG58 -> 0 | CF58: =Input_Commuter!AA58+Input_Commuter!AC58 -> 0 | CG58: =Input_Commuter!AE58 -> 0 | CH58: =Input_Commuter!AG58 -> 0 | CI58: =Input_Commuter!AI58 -> 0 | CJ58: =Input_Commuter!AK58 -> 0
C59: 2038 | CA59: =Input_Commuter!BL59+Input_Commuter!BN59+Input_Commuter!CW59+Input_Commuter!CY59 -> 0 | CB59: =Input_Commuter!BP59+Input_Commuter!DA59 -> 0 | CC59: =Input_Commuter!BR59+Input_Commuter!DC59 -> 0 | CD59: =Input_Commuter!BT59+Input_Commuter!DE59 -> 0 | CE59: =Input_Commuter!BV59+Input_Commuter!DG59 -> 0 | CF59: =Input_Commuter!AA59+Input_Commuter!AC59 -> 0 | CG59: =Input_Commuter!AE59 -> 0 | CH59: =Input_Commuter!AG59 -> 0 | CI59: =Input_Commuter!AI59 -> 0 | CJ59: =Input_Commuter!AK59 -> 0
C60: 2039 | CA60: =Input_Commuter!BL60+Input_Commuter!BN60+Input_Commuter!CW60+Input_Commuter!CY60 -> 0 | CB60: =Input_Commuter!BP60+Input_Commuter!DA60 -> 0 | CC60: =Input_Commuter!BR60+Input_Commuter!DC60 -> 0 | CD60: =Input_Commuter!BT60+Input_Commuter!DE60 -> 0 | CE60: =Input_Commuter!BV60+Input_Commuter!DG60 -> 0 | CF60: =Input_Commuter!AA60+Input_Commuter!AC60 -> 0 | CG60: =Input_Commuter!AE60 -> 0 | CH60: =Input_Commuter!AG60 -> 0 | CI60: =Input_Commuter!AI60 -> 0 | CJ60: =Input_Commuter!AK60 -> 0
C61: 2040 | CA61: =Input_Commuter!BL61+Input_Commuter!BN61+Input_Commuter!CW61+Input_Commuter!CY61 -> 0 | CB61: =Input_Commuter!BP61+Input_Commuter!DA61 -> 0 | CC61: =Input_Commuter!BR61+Input_Commuter!DC61 -> 0 | CD61: =Input_Commuter!BT61+Input_Commuter!DE61 -> 0 | CE61: =Input_Commuter!BV61+Input_Commuter!DG61 -> 0 | CF61: =Input_Commuter!AA61+Input_Commuter!AC61 -> 0 | CG61: =Input_Commuter!AE61 -> 0 | CH61: =Input_Commuter!AG61 -> 0 | CI61: =Input_Commuter!AI61 -> 0 | CJ61: =Input_Commuter!AK61 -> 0
C62: 2041 | CA62: =Input_Commuter!BL62+Input_Commuter!BN62+Input_Commuter!CW62+Input_Commuter!CY62 -> 0 | CB62: =Input_Commuter!BP62+Input_Commuter!DA62 -> 0 | CC62: =Input_Commuter!BR62+Input_Commuter!DC62 -> 0 | CD62: =Input_Commuter!BT62+Input_Commuter!DE62 -> 0 | CE62: =Input_Commuter!BV62+Input_Commuter!DG62 -> 0 | CF62: =Input_Commuter!AA62+Input_Commuter!AC62 -> 0 | CG62: =Input_Commuter!AE62 -> 0 | CH62: =Input_Commuter!AG62 -> 0 | CI62: =Input_Commuter!AI62 -> 0 | CJ62: =Input_Commuter!AK62 -> 0
C63: 2042 | CA63: =Input_Commuter!BL63+Input_Commuter!BN63+Input_Commuter!CW63+Input_Commuter!CY63 -> 0 | CB63: =Input_Commuter!BP63+Input_Commuter!DA63 -> 0 | CC63: =Input_Commuter!BR63+Input_Commuter!DC63 -> 0 | CD63: =Input_Commuter!BT63+Input_Commuter!DE63 -> 0 | CE63: =Input_Commuter!BV63+Input_Commuter!DG63 -> 0 | CF63: =Input_Commuter!AA63+Input_Commuter!AC63 -> 0 | CG63: =Input_Commuter!AE63 -> 0 | CH63: =Input_Commuter!AG63 -> 0 | CI63: =Input_Commuter!AI63 -> 0 | CJ63: =Input_Commuter!AK63 -> 0
C64: 2043 | CA64: =Input_Commuter!BL64+Input_Commuter!BN64+Input_Commuter!CW64+Input_Commuter!CY64 -> 0 | CB64: =Input_Commuter!BP64+Input_Commuter!DA64 -> 0 | CC64: =Input_Commuter!BR64+Input_Commuter!DC64 -> 0 | CD64: =Input_Commuter!BT64+Input_Commuter!DE64 -> 0 | CE64: =Input_Commuter!BV64+Input_Commuter!DG64 -> 0 | CF64: =Input_Commuter!AA64+Input_Commuter!AC64 -> 0 | CG64: =Input_Commuter!AE64 -> 0 | CH64: =Input_Commuter!AG64 -> 0 | CI64: =Input_Commuter!AI64 -> 0 | CJ64: =Input_Commuter!AK64 -> 0
C65: 2044 | CA65: =Input_Commuter!BL65+Input_Commuter!BN65+Input_Commuter!CW65+Input_Commuter!CY65 -> 0 | CB65: =Input_Commuter!BP65+Input_Commuter!DA65 -> 0 | CC65: =Input_Commuter!BR65+Input_Commuter!DC65 -> 0 | CD65: =Input_Commuter!BT65+Input_Commuter!DE65 -> 0 | CE65: =Input_Commuter!BV65+Input_Commuter!DG65 -> 0 | CF65: =Input_Commuter!AA65+Input_Commuter!AC65 -> 0 | CG65: =Input_Commuter!AE65 -> 0 | CH65: =Input_Commuter!AG65 -> 0 | CI65: =Input_Commuter!AI65 -> 0 | CJ65: =Input_Commuter!AK65 -> 0
C66: 2045 | CA66: =Input_Commuter!BL66+Input_Commuter!BN66+Input_Commuter!CW66+Input_Commuter!CY66 -> 0 | CB66: =Input_Commuter!BP66+Input_Commuter!DA66 -> 0 | CC66: =Input_Commuter!BR66+Input_Commuter!DC66 -> 0 | CD66: =Input_Commuter!BT66+Input_Commuter!DE66 -> 0 | CE66: =Input_Commuter!BV66+Input_Commuter!DG66 -> 0 | CF66: =Input_Commuter!AA66+Input_Commuter!AC66 -> 0 | CG66: =Input_Commuter!AE66 -> 0 | CH66: =Input_Commuter!AG66 -> 0 | CI66: =Input_Commuter!AI66 -> 0 | CJ66: =Input_Commuter!AK66 -> 0
C67: 2046 | CA67: =Input_Commuter!BL67+Input_Commuter!BN67+Input_Commuter!CW67+Input_Commuter!CY67 -> 0 | CB67: =Input_Commuter!BP67+Input_Commuter!DA67 -> 0 | CC67: =Input_Commuter!BR67+Input_Commuter!DC67 -> 0 | CD67: =Input_Commuter!BT67+Input_Commuter!DE67 -> 0 | CE67: =Input_Commuter!BV67+Input_Commuter!DG67 -> 0 | CF67: =Input_Commuter!AA67+Input_Commuter!AC67 -> 0 | CG67: =Input_Commuter!AE67 -> 0 | CH67: =Input_Commuter!AG67 -> 0 | CI67: =Input_Commuter!AI67 -> 0 | CJ67: =Input_Commuter!AK67 -> 0
C68: 2047 | CA68: =Input_Commuter!BL68+Input_Commuter!BN68+Input_Commuter!CW68+Input_Commuter!CY68 -> 0 | CB68: =Input_Commuter!BP68+Input_Commuter!DA68 -> 0 | CC68: =Input_Commuter!BR68+Input_Commuter!DC68 -> 0 | CD68: =Input_Commuter!BT68+Input_Commuter!DE68 -> 0 | CE68: =Input_Commuter!BV68+Input_Commuter!DG68 -> 0 | CF68: =Input_Commuter!AA68+Input_Commuter!AC68 -> 0 | CG68: =Input_Commuter!AE68 -> 0 | CH68: =Input_Commuter!AG68 -> 0 | CI68: =Input_Commuter!AI68 -> 0 | CJ68: =Input_Commuter!AK68 -> 0
C69: 2048 | CA69: =Input_Commuter!BL69+Input_Commuter!BN69+Input_Commuter!CW69+Input_Commuter!CY69 -> 0 | CB69: =Input_Commuter!BP69+Input_Commuter!DA69 -> 0 | CC69: =Input_Commuter!BR69+Input_Commuter!DC69 -> 0 | CD69: =Input_Commuter!BT69+Input_Commuter!DE69 -> 0 | CE69: =Input_Commuter!BV69+Input_Commuter!DG69 -> 0 | CF69: =Input_Commuter!AA69+Input_Commuter!AC69 -> 0 | CG69: =Input_Commuter!AE69 -> 0 | CH69: =Input_Commuter!AG69 -> 0 | CI69: =Input_Commuter!AI69 -> 0 | CJ69: =Input_Commuter!AK69 -> 0
C70: 2049 | CA70: =Input_Commuter!BL70+Input_Commuter!BN70+Input_Commuter!CW70+Input_Commuter!CY70 -> 0 | CB70: =Input_Commuter!BP70+Input_Commuter!DA70 -> 0 | CC70: =Input_Commuter!BR70+Input_Commuter!DC70 -> 0 | CD70: =Input_Commuter!BT70+Input_Commuter!DE70 -> 0 | CE70: =Input_Commuter!BV70+Input_Commuter!DG70 -> 0 | CF70: =Input_Commuter!AA70+Input_Commuter!AC70 -> 0 | CG70: =Input_Commuter!AE70 -> 0 | CH70: =Input_Commuter!AG70 -> 0 | CI70: =Input_Commuter!AI70 -> 0 | CJ70: =Input_Commuter!AK70 -> 0
C71: 2050 | CA71: =Input_Commuter!BL71+Input_Commuter!BN71+Input_Commuter!CW71+Input_Commuter!CY71 -> 0 | CB71: =Input_Commuter!BP71+Input_Commuter!DA71 -> 0 | CC71: =Input_Commuter!BR71+Input_Commuter!DC71 -> 0 | CD71: =Input_Commuter!BT71+Input_Commuter!DE71 -> 0 | CE71: =Input_Commuter!BV71+Input_Commuter!DG71 -> 0 | CF71: =Input_Commuter!AA71+Input_Commuter!AC71 -> 0 | CG71: =Input_Commuter!AE71 -> 0 | CH71: =Input_Commuter!AG71 -> 0 | CI71: =Input_Commuter!AI71 -> 0 | CJ71: =Input_Commuter!AK71 -> 0

Sheet Input_Commuter
B2: On this Worksheet: Estimates of commuter miles traveled for faculty, staff, and students.
B3: MODULE | C3: Input
B4: WORKSHEET | C4: Commuter Traffic
B5: UNIVERSITY
C7: STUDENTS | AA7: Summary - Students | AN7: FACULTY | BL7: Summary - Faculty | BY7: STAFF | CW7: Summary - Staff | DJ7: Summary - Faculty and Staff
C8: 1) Trips / Week | F8: 2) Weeks / Year | G8: 3) Trip Distribution (% Trips by Mode) | O8: 4) Trip Distance (Miles per One-Way Trip for Each Mode) | V8: Fuel efficiency is in SIMAP | AA8: Summary - Students | AN8: 1) Trips / Week | AQ8: 2) Weeks / Year | AR8: 3) Trip Distribution (% Trips by Mode) | AZ8: 4) Trip Distance (Miles per One-Way Trip for Each Mode) | BG8: Fuel Efficiencies Used in Calculations are in SIMAP | BL8: Summary - Faculty | BY8: 1) Trips / Week | CB8: 2) Weeks / Year | CC8: 3) Trip Distribution (% Trips by Mode) | CK8: 4) Trip Distance (Miles per One-Way Trip for Each Mode) | CR8: Fuel efficiency used in calculation are already in SIMAP | CW8: Summary - Staff | DJ8: Summary - Faculty and Staff
B9: Fiscal Year | C9: Students Commuters | D9: One-Way Trips / Week | E9: Total Commuter Trips / Week | F9: Weeks / Year | G9: Bike | H9: Walk | I9: Drive Alone | J9: Carpool | K9: Bus | L9: Light Rail | M9: Commuter Rail | N9: Total | O9: Bike | P9: Walk | Q9: Drive Alone | R9: Carpool | S9: Bus | T9: Light Rail | U9: Commuter Rail | AA9: Biking | AC9: Walking | AE9: Automobile Commuting | AG9: Bus Commuting | AI9: Light Rail Commuting | AK9: Commuter Rail Commuting | AN9: Faculty Commuters | AO9: One-Way Trips / Week | AP9: Total Commuter Trips / Week | AQ9: Weeks / Year | AR9: Bike | AS9: Walk | AT9: Drive Alone | AU9: Carpool | AV9: Bus | AW9: Light Rail | AX9: Commuter Rail | AY9: Total | AZ9: Bike | BA9: Walk | BB9: Drive Alone | BC9: Carpool | BD9: Bus | BE9: Light Rail | BF9: Commuter Rail | BL9: Biking | BN9: Walking | BP9: Automobile Commuting | BR9: Bus Commuting | BT9: Light Rail Commuting | BV9: Commuter Rail Commuting | BY9: Staff Commuters | BZ9: One-Way Trips / Week | CA9: Total Commuter Trips / Week | CB9: Weeks / Year | CC9: Bike | CD9: Walk | CE9: Drive Alone | CF9: Carpool | CG9: Bus | CH9: Light Rail | CI9: Commuter Rail | CJ9: Total | CK9: Bike | CL9: Walk | CM9: Drive Alone | CN9: Carpool | CO9: Bus | CP9: Light Rail | CQ9: Commuter Rail | CW9: Biking | CY9: Walking | DA9: Automobile Commuting | DC9: Bus Commuting | DE9: Light Rail Commuting | DG9: Commuter Rail Commuting | DJ9: Biking | DL9: Walking | DN9: Automobile Commuting | DP9: Bus Commuting | DR9: Light Rail Commuting | DT9: Commuter Rail Commuting
C10: # | D10: # | E10: # | F10: # | G10: % | H10: % | I10: % | J10: % | K10: % | L10: % | M10: % | N10: % | O10: Passenger Miles | P10: Passenger Miles | Q10: Vehicle Miles | R10: Vehicle Miles | S10: Passenger Miles | T10: Passenger Miles | U10: Passenger Miles | AA10: Total Miles | AB10: Fuel Consumed | AC10: Total Miles | AD10: Fuel Consumed | AE10: Total Miles | AF10: Gallons Gasoline | AG10: Total Miles | AH10: Gallons Diesel | AI10: Total Miles | AJ10: kWh | AK10: Total Miles | AL10: Gallons Diesel | AM10: kWh | AN10: # | AO10: # | AP10: # | AQ10: # | AR10: % | AS10: % | AT10: % | AU10: % | AV10: % | AW10: % | AX10: % | AY10: % | AZ10: Passenger Miles | BA10: Passenger Miles | BB10: Vehicle Miles | BC10: Vehicle Miles | BD10: Passenger Miles | BE10: Passenger Miles | BF10: Passenger Miles | BL10: Total Miles | BM10: Fuel Consumed | BN10: Total Miles | BO10: Fuel Consumed | BP10: Total Miles | BQ10: Gallons Gasoline | BR10: Total Miles | BS10: Gallons Diesel | BT10: Total Miles | BU10: kWh | BV10: Total Miles | BW10: Gallons Diesel | BX10: kWh | BY10: # | BZ10: # | CA10: # | CB10: # | CC10: % | CD10: % | CE10: % | CF10: % | CG10: % | CH10: % | CI10: % | CJ10: % | CK10: Passenger Miles | CL10: Passenger Miles | CM10: Vehicle Miles | CN10: Vehicle Miles | CO10: Passenger Miles | CP10: Passenger Miles | CQ10: Passenger Miles | CW10: Total Miles | CX10: Fuel Consumed | CY10: Total Miles | CZ10: Fuel Consumed | DA10: Total Miles | DB10: Gallons Gasoline | DC10: Total Miles | DD10: Gallons Diesel | DE10: Total Miles | DF10: kWh | DG10: Total Miles | DH10: Gallons Diesel | DI10: kWh | DJ10: Total Miles | DK10: Fuel Consumed | DL10: Total Miles | DM10: Fuel Consumed | DN10: Total Miles | DO10: Gallons Gasoline | DP10: Total Miles | DQ10: Gallons Diesel | DR10: Total Miles | DS10: kWh | DT10: Total Miles | DU10: Gallons Diesel | DV10: kWh
B11: =Input!C11 -> 1990 | E11: =C11*D11 -> 0 | N11: =SUM(G11:M11) -> 0 | AA11: =E11*F11*G11*O11 -> 0 | AB11: =0 -> 0 | AC11: =E11*F11*H11*P11 -> 0 | AD11: =0 -> 0 | AE11: =((E11*F11*I11*Q11)+(E11*F11*J11*R11)/2) -> 0 | AF11: =AE11/V11 ->  | AG11: =E11*F11*K11*S11 -> 0 | AH11: =AG11/W11 ->  | AI11: =E11*F11*L11*T11 -> 0 | AJ11: =AI11/X11 ->  | AK11: =E11*F11*M11*U11 -> 0 | AL11: =AK11/Y11 ->  | AM11: =AK11/Z11 ->  | AP11: =AN11*AO11 -> 0 | AY11: =SUM(AR11:AX11) -> 0 | BL11: =AP11*AQ11*AR11*AZ11 -> 0 | BM11: =0 -> 0 | BN11: =AP11*AQ11*AS11*BA11 -> 0 | BO11: =0 -> 0 | BP11: =((AP11*AQ11*AT11*BB11)+(AP11*AQ11*AU11*BC11)/2) -> 0 | BQ11: =BP11/BG11 ->  | BR11: =AP11*AQ11*AV11*BD11 -> 0 | BS11: =BR11/BH11 ->  | BT11: =AP11*AQ11*AW11*BE11 -> 0 | BU11: =BT11/BI11 ->  | BV11: =AP11*AQ11*AX11*BF11 -> 0 | BW11: =BV11/BJ11 ->  | BX11: =BV11/BK11 ->  | CA11: =BY11*BZ11 -> 0 | CJ11: =SUM(CC11:CI11) -> 0 | CW11: =CA11*CB11*CC11*CK11 -> 0 | CX11: =0 -> 0 | CY11: =CA11*CB11*CD11*CL11 -> 0 | CZ11: =0 -> 0 | DA11: =((CA11*CB11*CE11*CM11)+(CA11*CB11*CF11*CN11)/2) -> 0 | DB11: =DA11/CR11 ->  | DC11: =CA11*CB11*CG11*CO11 -> 0 | DD11: =DC11/CS11 ->  | DE11: =CA11*CB11*CH11*CP11 -> 0 | DF11: =DE11/CT11 ->  | DG11: =CA11*CB11*CI11*CQ11 -> 0 | DH11: =DG11/CU11 ->  | DI11: =DG11/CV11 ->  | DJ11: =BL11+CW11 -> 0 | DK11: =BM11+CX11 -> 0 | DL11: 0 | DM11: 0 | DN11: 0 | DP11: 0 | DR11: 0 | DT11: 0
B12: =Input!C12 -> 1991 | E12: =C12*D12 -> 0 | N12: =SUM(G12:M12) -> 0 | AA12: =E12*F12*G12*O12 -> 0 | AB12: =0 -> 0 | AC12: =E12*F12*H12*P12 -> 0 | AD12: =0 -> 0 | AE12: =((E12*F12*I12*Q12)+(E12*F12*J12*R12)/2) -> 0 | AF12: =AE12/V12 ->  | AG12: =E12*F12*K12*S12 -> 0 | AH12: =AG12/W12 ->  | AI12: =E12*F12*L12*T12 -> 0 | AJ12: =AI12/X12 ->  | AK12: =E12*F12*M12*U12 -> 0 | AL12: =AK12/Y12 ->  | AM12: =AK12/Z12 ->  | AP12: =AN12*AO12 -> 0 | AY12: =SUM(AR12:AX12) -> 0 | BL12: =AP12*AQ12*AR12*AZ12 -> 0 | BM12: =0 -> 0 | BN12: =AP12*AQ12*AS12*BA12 -> 0 | BO12: =0 -> 0 | BP12: =((AP12*AQ12*AT12*BB12)+(AP12*AQ12*AU12*BC12)/2) -> 0 | BQ12: =BP12/BG12 ->  | BR12: =AP12*AQ12*AV12*BD12 -> 0 | BS12: =BR12/BH12 ->  | BT12: =AP12*AQ12*AW12*BE12 -> 0 | BU12: =BT12/BI12 ->  | BV12: =AP12*AQ12*AX12*BF12 -> 0 | BW12: =BV12/BJ12 ->  | BX12: =BV12/BK12 ->  | CA12: =BY12*BZ12 -> 0 | CJ12: =SUM(CC12:CI12) -> 0 | CW12: =CA12*CB12*CC12*CK12 -> 0 | CX12: =0 -> 0 | CY12: =CA12*CB12*CD12*CL12 -> 0 | CZ12: =0 -> 0 | DA12: =((CA12*CB12*CE12*CM12)+(CA12*CB12*CF12*CN12)/2) -> 0 | DB12: =DA12/CR12 ->  | DC12: =CA12*CB12*CG12*CO12 -> 0 | DD12: =DC12/CS12 ->  | DE12: =CA12*CB12*CH12*CP12 -> 0 | DF12: =DE12/CT12 ->  | DG12: =CA12*CB12*CI12*CQ12 -> 0 | DH12: =DG12/CU12 ->  | DI12: =DG12/CV12 ->  | DJ12: =BL12+CW12 -> 0 | DK12: =BM12+CX12 -> 0 | DL12: =BN12+CY12 -> 0 | DM12: =BO12+CZ12 -> 0 | DN12: =BP12+DA12 -> 0 | DO12: =BQ12+DB12 ->  | DP12: =BR12+DC12 -> 0 | DQ12: =BS12+DD12 ->  | DR12: =BT12+DE12 -> 0 | DS12: =BU12+DF12 ->  | DT12: =BV12+DG12 -> 0 | DU12: =BW12+DH12 ->  | DV12: =BX12+DI12 -> 
B13: =Input!C13 -> 1992 | E13: 0 | N13: 0 | AA13: 0 | AB13: =0 -> 0 | AC13: 0 | AD13: =0 -> 0 | AE13: 0 | AG13: 0 | AI13: 0 | AK13: 0 | AP13: 0 | AY13: 0 | BL13: 0 | BM13: =0 -> 0 | BN13: 0 | BO13: =0 -> 0 | BP13: 0 | BR13: 0 | BT13: 0 | BV13: 0 | CA13: 0 | CJ13: 0 | CW13: 0 | CX13: =0 -> 0 | CY13: 0 | CZ13: =0 -> 0 | DA13: 0 | DC13: 0 | DE13: 0 | DG13: 0 | DJ13: 0 | DK13: 0 | DL13: 0 | DM13: 0 | DN13: 0 | DP13: 0 | DR13: 0 | DT13: 0
B14: =Input!C14 -> 1993 | E14: 0 | N14: 0 | AA14: 0 | AB14: =0 -> 0 | AC14: 0 | AD14: =0 -> 0 | AE14: 0 | AG14: 0 | AI14: 0 | AK14: 0 | AP14: 0 | AY14: 0 | BL14: 0 | BM14: =0 -> 0 | BN14: 0 | BO14: =0 -> 0 | BP14: 0 | BR14: 0 | BT14: 0 | BV14: 0 | CA14: 0 | CJ14: 0 | CW14: 0 | CX14: =0 -> 0 | CY14: 0 | CZ14: =0 -> 0 | DA14: 0 | DC14: 0 | DE14: 0 | DG14: 0 | DJ14: 0 | DK14: 0 | DL14: 0 | DM14: 0 | DN14: 0 | DP14: 0 | DR14: 0 | DT14: 0
B15: =Input!C15 -> 1994 | E15: 0 | N15: 0 | AA15: 0 | AB15: =0 -> 0 | AC15: 0 | AD15: =0 -> 0 | AE15: 0 | AG15: 0 | AI15: 0 | AK15: 0 | AP15: 0 | AY15: 0 | BL15: 0 | BM15: =0 -> 0 | BN15: 0 | BO15: =0 -> 0 | BP15: 0 | BR15: 0 | BT15: 0 | BV15: 0 | CA15: 0 | CJ15: 0 | CW15: 0 | CX15: =0 -> 0 | CY15: 0 | CZ15: =0 -> 0 | DA15: 0 | DC15: 0 | DE15: 0 | DG15: 0 | DJ15: 0 | DK15: 0 | DL15: 0 | DM15: 0 | DN15: 0 | DP15: 0 | DR15: 0 | DT15: 0
B16: =Input!C16 -> 1995 | E16: 0 | N16: 0 | AA16: 0 | AB16: =0 -> 0 | AC16: 0 | AD16: =0 -> 0 | AE16: 0 | AG16: 0 | AI16: 0 | AK16: 0 | AP16: 0 | AY16: 0 | BL16: 0 | BM16: =0 -> 0 | BN16: 0 | BO16: =0 -> 0 | BP16: 0 | BR16: 0 | BT16: 0 | BV16: 0 | CA16: 0 | CJ16: 0 | CW16: 0 | CX16: =0 -> 0 | CY16: 0 | CZ16: =0 -> 0 | DA16: 0 | DC16: 0 | DE16: 0 | DG16: 0 | DJ16: 0 | DK16: 0 | DL16: 0 | DM16: 0 | DN16: 0 | DP16: 0 | DR16: 0 | DT16: 0
B17: =Input!C17 -> 1996 | E17: 0 | N17: 0 | AA17: 0 | AB17: =0 -> 0 | AC17: 0 | AD17: =0 -> 0 | AE17: 0 | AG17: 0 | AI17: 0 | AK17: 0 | AP17: 0 | AY17: 0 | BL17: 0 | BM17: =0 -> 0 | BN17: 0 | BO17: =0 -> 0 | BP17: 0 | BR17: 0 | BT17: 0 | BV17: 0 | CA17: 0 | CJ17: 0 | CW17: 0 | CX17: =0 -> 0 | CY17: 0 | CZ17: =0 -> 0 | DA17: 0 | DC17: 0 | DE17: 0 | DG17: 0 | DJ17: 0 | DK17: 0 | DL17: 0 | DM17: 0 | DN17: 0 | DP17: 0 | DR17: 0 | DT17: 0
B18: =Input!C18 -> 1997 | E18: 0 | N18: 0 | AA18: 0 | AB18: =0 -> 0 | AC18: 0 | AD18: =0 -> 0 | AE18: 0 | AG18: 0 | AI18: 0 | AK18: 0 | AP18: 0 | AY18: 0 | BL18: 0 | BM18: =0 -> 0 | BN18: 0 | BO18: =0 -> 0 | BP18: 0 | BR18: 0 | BT18: 0 | BV18: 0 | CA18: 0 | CJ18: 0 | CW18: 0 | CX18: =0 -> 0 | CY18: 0 | CZ18: =0 -> 0 | DA18: 0 | DC18: 0 | DE18: 0 | DG18: 0 | DJ18: 0 | DK18: 0 | DL18: 0 | DM18: 0 | DN18: 0 | DP18: 0 | DR18: 0 | DT18: 0
B19: =Input!C19 -> 1998 | E19: 0 | N19: 0 | AA19: 0 | AB19: =0 -> 0 | AC19: 0 | AD19: =0 -> 0 | AE19: 0 | AG19: 0 | AI19: 0 | AK19: 0 | AP19: 0 | AY19: 0 | BL19: 0 | BM19: =0 -> 0 | BN19: 0 | BO19: =0 -> 0 | BP19: 0 | BR19: 0 | BT19: 0 | BV19: 0 | CA19: 0 | CJ19: 0 | CW19: 0 | CX19: =0 -> 0 | CY19: 0 | CZ19: =0 -> 0 | DA19: 0 | DC19: 0 | DE19: 0 | DG19: 0 | DJ19: 0 | DK19: 0 | DL19: 0 | DM19: 0 | DN19: 0 | DP19: 0 | DR19: 0 | DT19: 0
B20: =Input!C20 -> 1999 | E20: 0 | N20: 0 | AA20: 0 | AB20: =0 -> 0 | AC20: 0 | AD20: =0 -> 0 | AE20: 0 | AG20: 0 | AI20: 0 | AK20: 0 | AP20: 0 | AY20: 0 | BL20: 0 | BM20: =0 -> 0 | BN20: 0 | BO20: =0 -> 0 | BP20: 0 | BR20: 0 | BT20: 0 | BV20: 0 | CA20: 0 | CJ20: 0 | CW20: 0 | CX20: =0 -> 0 | CY20: 0 | CZ20: =0 -> 0 | DA20: 0 | DC20: 0 | DE20: 0 | DG20: 0 | DJ20: 0 | DK20: 0 | DL20: 0 | DM20: 0 | DN20: 0 | DP20: 0 | DR20: 0 | DT20: 0
B21: =Input!C21 -> 2000 | E21: 0 | N21: 0 | AA21: 0 | AB21: =0 -> 0 | AC21: 0 | AD21: =0 -> 0 | AE21: 0 | AG21: 0 | AI21: 0 | AK21: 0 | AP21: 0 | AY21: 0 | BL21: 0 | BM21: =0 -> 0 | BN21: 0 | BO21: =0 -> 0 | BP21: 0 | BR21: 0 | BT21: 0 | BV21: 0 | CA21: 0 | CJ21: 0 | CW21: 0 | CX21: =0 -> 0 | CY21: 0 | CZ21: =0 -> 0 | DA21: 0 | DC21: 0 | DE21: 0 | DG21: 0 | DJ21: 0 | DK21: 0 | DL21: 0 | DM21: 0 | DN21: 0 | DP21: 0 | DR21: 0 | DT21: 0
B22: =Input!C22 -> 2001 | E22: 0 | N22: 0 | AA22: 0 | AB22: =0 -> 0 | AC22: 0 | AD22: =0 -> 0 | AE22: 0 | AG22: 0 | AI22: 0 | AK22: 0 | AP22: 0 | AY22: 0 | BL22: 0 | BM22: =0 -> 0 | BN22: 0 | BO22: =0 -> 0 | BP22: 0 | BR22: 0 | BT22: 0 | BV22: 0 | CA22: 0 | CJ22: 0 | CW22: 0 | CX22: =0 -> 0 | CY22: 0 | CZ22: =0 -> 0 | DA22: 0 | DC22: 0 | DE22: 0 | DG22: 0 | DJ22: 0 | DK22: 0 | DL22: 0 | DM22: 0 | DN22: 0 | DP22: 0 | DR22: 0 | DT22: 0
B23: =Input!C23 -> 2002 | E23: 0 | N23: 0 | AA23: 0 | AB23: =0 -> 0 | AC23: 0 | AD23: =0 -> 0 | AE23: 0 | AG23: 0 | AI23: 0 | AK23: 0 | AP23: 0 | AY23: 0 | BL23: 0 | BM23: =0 -> 0 | BN23: 0 | BO23: =0 -> 0 | BP23: 0 | BR23: 0 | BT23: 0 | BV23: 0 | CA23: 0 | CJ23: 0 | CW23: 0 | CX23: =0 -> 0 | CY23: 0 | CZ23: =0 -> 0 | DA23: 0 | DC23: 0 | DE23: 0 | DG23: 0 | DJ23: 0 | DK23: 0 | DL23: 0 | DM23: 0 | DN23: 0 | DP23: 0 | DR23: 0 | DT23: 0
B24: =Input!C24 -> 2003 | E24: 0 | N24: 0 | AA24: 0 | AB24: =0 -> 0 | AC24: 0 | AD24: =0 -> 0 | AE24: 0 | AG24: 0 | AI24: 0 | AK24: 0 | AP24: 0 | AY24: 0 | BL24: 0 | BM24: =0 -> 0 | BN24: 0 | BO24: =0 -> 0 | BP24: 0 | BR24: 0 | BT24: 0 | BV24: 0 | CA24: 0 | CJ24: 0 | CW24: 0 | CX24: =0 -> 0 | CY24: 0 | CZ24: =0 -> 0 | DA24: 0 | DC24: 0 | DE24: 0 | DG24: 0 | DJ24: 0 | DK24: 0 | DL24: 0 | DM24: 0 | DN24: 0 | DP24: 0 | DR24: 0 | DT24: 0
B25: =Input!C25 -> 2004 | E25: 0 | N25: 0 | AA25: 0 | AB25: =0 -> 0 | AC25: 0 | AD25: =0 -> 0 | AE25: 0 | AG25: 0 | AI25: 0 | AK25: 0 | AP25: 0 | AY25: 0 | BL25: 0 | BM25: =0 -> 0 | BN25: 0 | BO25: =0 -> 0 | BP25: 0 | BR25: 0 | BT25: 0 | BV25: 0 | CA25: 0 | CJ25: 0 | CW25: 0 | CX25: =0 -> 0 | CY25: 0 | CZ25: =0 -> 0 | DA25: 0 | DC25: 0 | DE25: 0 | DG25: 0 | DJ25: 0 | DK25: 0 | DL25: 0 | DM25: 0 | DN25: 0 | DP25: 0 | DR25: 0 | DT25: 0
B26: =Input!C26 -> 2005 | E26: 0 | N26: 0 | AA26: 0 | AB26: =0 -> 0 | AC26: 0 | AD26: =0 -> 0 | AE26: 0 | AG26: 0 | AI26: 0 | AK26: 0 | AP26: 0 | AY26: 0 | BL26: 0 | BM26: =0 -> 0 | BN26: 0 | BO26: =0 -> 0 | BP26: 0 | BR26: 0 | BT26: 0 | BV26: 0 | CA26: 0 | CJ26: 0 | CW26: 0 | CX26: =0 -> 0 | CY26: 0 | CZ26: =0 -> 0 | DA26: 0 | DC26: 0 | DE26: 0 | DG26: 0 | DJ26: 0 | DK26: 0 | DL26: 0 | DM26: 0 | DN26: 0 | DP26: 0 | DR26: 0 | DT26: 0
B27: =Input!C27 -> 2006 | E27: 0 | N27: 0 | AA27: 0 | AB27: =0 -> 0 | AC27: 0 | AD27: =0 -> 0 | AE27: 0 | AG27: 0 | AI27: 0 | AK27: 0 | AP27: 0 | AY27: 0 | BL27: 0 | BM27: =0 -> 0 | BN27: 0 | BO27: =0 -> 0 | BP27: 0 | BR27: 0 | BT27: 0 | BV27: 0 | CA27: 0 | CJ27: 0 | CW27: 0 | CX27: =0 -> 0 | CY27: 0 | CZ27: =0 -> 0 | DA27: 0 | DC27: 0 | DE27: 0 | DG27: 0 | DJ27: 0 | DK27: 0 | DL27: 0 | DM27: 0 | DN27: 0 | DP27: 0 | DR27: 0 | DT27: 0
B28: =Input!C28 -> 2007 | E28: 0 | N28: 0 | AA28: 0 | AB28: =0 -> 0 | AC28: 0 | AD28: =0 -> 0 | AE28: 0 | AG28: 0 | AI28: 0 | AK28: 0 | AP28: 0 | AY28: 0 | BL28: 0 | BM28: =0 -> 0 | BN28: 0 | BO28: =0 -> 0 | BP28: 0 | BR28: 0 | BT28: 0 | BV28: 0 | CA28: 0 | CJ28: 0 | CW28: 0 | CX28: =0 -> 0 | CY28: 0 | CZ28: =0 -> 0 | DA28: 0 | DC28: 0 | DE28: 0 | DG28: 0 | DJ28: 0 | DK28: 0 | DL28: 0 | DM28: 0 | DN28: 0 | DP28: 0 | DR28: 0 | DT28: 0
B29: =Input!C29 -> 2008 | E29: 0 | N29: 0 | AA29: 0 | AB29: =0 -> 0 | AC29: 0 | AD29: =0 -> 0 | AE29: 0 | AG29: 0 | AI29: 0 | AK29: 0 | AP29: 0 | AY29: 0 | BL29: 0 | BM29: =0 -> 0 | BN29: 0 | BO29: =0 -> 0 | BP29: 0 | BR29: 0 | BT29: 0 | BV29: 0 | CA29: 0 | CJ29: 0 | CW29: 0 | CX29: =0 -> 0 | CY29: 0 | CZ29: =0 -> 0 | DA29: 0 | DC29: 0 | DE29: 0 | DG29: 0 | DJ29: 0 | DK29: 0 | DL29: 0 | DM29: 0 | DN29: 0 | DP29: 0 | DR29: 0 | DT29: 0
B30: =Input!C30 -> 2009 | E30: 0 | N30: 0 | AA30: 0 | AB30: =0 -> 0 | AC30: 0 | AD30: =0 -> 0 | AE30: 0 | AG30: 0 | AI30: 0 | AK30: 0 | AP30: 0 | AY30: 0 | BL30: 0 | BM30: =0 -> 0 | BN30: 0 | BO30: =0 -> 0 | BP30: 0 | BR30: 0 | BT30: 0 | BV30: 0 | CA30: 0 | CJ30: 0 | CW30: 0 | CX30: =0 -> 0 | CY30: 0 | CZ30: =0 -> 0 | DA30: 0 | DC30: 0 | DE30: 0 | DG30: 0 | DJ30: 0 | DK30: 0 | DL30: 0 | DM30: 0 | DN30: 0 | DP30: 0 | DR30: 0 | DT30: 0
B31: =Input!C31 -> 2010 | E31: 0 | N31: 0 | AA31: 0 | AB31: =0 -> 0 | AC31: 0 | AD31: =0 -> 0 | AE31: 0 | AG31: 0 | AI31: 0 | AK31: 0 | AP31: 0 | AY31: 0 | BL31: 0 | BM31: =0 -> 0 | BN31: 0 | BO31: =0 -> 0 | BP31: 0 | BR31: 0 | BT31: 0 | BV31: 0 | CA31: 0 | CJ31: 0 | CW31: 0 | CX31: =0 -> 0 | CY31: 0 | CZ31: =0 -> 0 | DA31: 0 | DC31: 0 | DE31: 0 | DG31: 0 | DJ31: 0 | DK31: 0 | DL31: 0 | DM31: 0 | DN31: 0 | DP31: 0 | DR31: 0 | DT31: 0
B32: =Input!C32 -> 2011 | E32: 0 | N32: 0 | AA32: 0 | AB32: =0 -> 0 | AC32: 0 | AD32: =0 -> 0 | AE32: 0 | AG32: 0 | AI32: 0 | AK32: 0 | AP32: 0 | AY32: 0 | BL32: 0 | BM32: =0 -> 0 | BN32: 0 | BO32: =0 -> 0 | BP32: 0 | BR32: 0 | BT32: 0 | BV32: 0 | CA32: 0 | CJ32: 0 | CW32: 0 | CX32: =0 -> 0 | CY32: 0 | CZ32: =0 -> 0 | DA32: 0 | DC32: 0 | DE32: 0 | DG32: 0 | DJ32: 0 | DK32: 0 | DL32: 0 | DM32: 0 | DN32: 0 | DP32: 0 | DR32: 0 | DT32: 0
B33: =Input!C33 -> 2012 | E33: 0 | N33: 0 | AA33: 0 | AB33: =0 -> 0 | AC33: 0 | AD33: =0 -> 0 | AE33: 0 | AG33: 0 | AI33: 0 | AK33: 0 | AP33: 0 | AY33: 0 | BL33: 0 | BM33: =0 -> 0 | BN33: 0 | BO33: =0 -> 0 | BP33: 0 | BR33: 0 | BT33: 0 | BV33: 0 | CA33: 0 | CJ33: 0 | CW33: 0 | CX33: =0 -> 0 | CY33: 0 | CZ33: =0 -> 0 | DA33: 0 | DC33: 0 | DE33: 0 | DG33: 0 | DJ33: 0 | DK33: 0 | DL33: 0 | DM33: 0 | DN33: 0 | DP33: 0 | DR33: 0 | DT33: 0
B34: =Input!C34 -> 2013 | E34: 0 | N34: 0 | AA34: 0 | AB34: =0 -> 0 | AC34: 0 | AD34: =0 -> 0 | AE34: 0 | AG34: 0 | AI34: 0 | AK34: 0 | AP34: 0 | AY34: 0 | BL34: 0 | BM34: =0 -> 0 | BN34: 0 | BO34: =0 -> 0 | BP34: 0 | BR34: 0 | BT34: 0 | BV34: 0 | CA34: 0 | CJ34: 0 | CW34: 0 | CX34: =0 -> 0 | CY34: 0 | CZ34: =0 -> 0 | DA34: 0 | DC34: 0 | DE34: 0 | DG34: 0 | DJ34: 0 | DK34: 0 | DL34: 0 | DM34: 0 | DN34: 0 | DP34: 0 | DR34: 0 | DT34: 0
B35: =Input!C35 -> 2014 | C35: 20719 | D35: 8 | E35: 165752 | F35: 34 | G35: 0.01 | H35: 0.18 | I35: 0.42 | J35: 0.04 | K35: 0.33 | L35: 0.02 | M35: 0 | N35: 1 | O35: 2 | P35: 1 | Q35: 10 | R35: 10 | S35: 10 | T35: 3 | U35: 0 | V35: 24.17016964 | W35: 31.93189992 | X35: 2.659748289 | Y35: 116.6738197 | Z35: 6.051196439 | AA35: =E35*F35*G35*O35 -> 112711.36 | AB35: =0 -> 0 | AC35: 1014402.24 | AD35: =0 -> 0 | AE35: 24796499.2 | AF35: 1025913.329 | AG35: 18597374.4 | AH35: 582407.3872 | AI35: 338134.08 | AJ35: 127130.1053 | AK35: 0 | AL35: 0 | AM35: 0 | AN35: 1771 | AO35: 10 | AP35: 17710 | AQ35: 46 | AR35: 0.01 | AS35: 0.03 | AT35: 0.87 | AU35: 0.05 | AV35: 0.02 | AW35: 0.02 | AX35: 0 | AY35: 1 | AZ35: 2 | BA35: 1 | BB35: 13 | BC35: 13 | BD35: 13 | BE35: 3 | BF35: 0 | BG35: 24.17016964 | BH35: 31.93189992 | BI35: 2.659748289 | BJ35: 116.6738197 | BK35: 6.051196439 | BL35: 16293.2 | BM35: =0 -> 0 | BN35: 24439.8 | BO35: =0 -> 0 | BP35: 9478569.1 | BQ35: 392159.8086 | BR35: 211811.6 | BS35: 6633.228857 | BT35: 48879.6 | BU35: 18377.52851 | BV35: 0 | BW35: 0 | BX35: 0 | BY35: 5020 | BZ35: 10 | CA35: 50200 | CB35: 46 | CC35: 0.01 | CD35: 0.03 | CE35: 0.87 | CF35: 0.05 | CG35: 0.02 | CH35: 0.02 | CI35: 0 | CJ35: 1 | CK35: 2 | CL35: 1 | CM35: 13 | CN35: 13 | CO35: 13 | CP35: 3 | CQ35: 0 | CR35: 24.17016964 | CS35: 31.93189992 | CT35: 2.659748289 | CU35: 116.6738197 | CV35: 6.051196439 | CW35: 46184 | CX35: =0 -> 0 | CY35: 69276 | CZ35: =0 -> 0 | DA35: 26867542 | DB35: 1111599.232 | DC35: 600392 | DD35: 18802.26361 | DE35: 138552 | DF35: 52092.14743 | DG35: 0 | DH35: 0 | DI35: 0 | DJ35: 62477.2 | DK35: 0 | DL35: 93715.8 | DM35: 0 | DN35: 36346111.1 | DO35: 1503759.04 | DP35: 812203.6 | DQ35: 25435.49247 | DR35: 187431.6 | DS35: 70469.67594 | DT35: 0 | DU35: 0 | DV35: 0
B36: =Input!C36 -> 2015 | E36: 0 | N36: 0 | AA36: 0 | AB36: =0 -> 0 | AC36: 0 | AD36: =0 -> 0 | AE36: 0 | AG36: 0 | AI36: 0 | AK36: 0 | AP36: 0 | AY36: 0 | BL36: 0 | BM36: =0 -> 0 | BN36: 0 | BO36: =0 -> 0 | BP36: 0 | BR36: 0 | BT36: 0 | BV36: 0 | CA36: 0 | CJ36: 0 | CW36: 0 | CX36: =0 -> 0 | CY36: 0 | CZ36: =0 -> 0 | DA36: 0 | DC36: 0 | DE36: 0 | DG36: 0 | DJ36: 0 | DK36: 0 | DL36: 0 | DM36: 0 | DN36: 0 | DP36: 0 | DR36: 0 | DT36: 0
B37: =Input!C37 -> 2016 | E37: 0 | N37: 0 | AA37: 0 | AB37: =0 -> 0 | AC37: 0 | AD37: =0 -> 0 | AE37: 0 | AG37: 0 | AI37: 0 | AK37: 0 | AP37: 0 | AY37: 0 | BL37: 0 | BM37: =0 -> 0 | BN37: 0 | BO37: =0 -> 0 | BP37: 0 | BR37: 0 | BT37: 0 | BV37: 0 | CA37: 0 | CJ37: 0 | CW37: 0 | CX37: =0 -> 0 | CY37: 0 | CZ37: =0 -> 0 | DA37: 0 | DC37: 0 | DE37: 0 | DG37: 0 | DJ37: 0 | DK37: 0 | DL37: 0 | DM37: 0 | DN37: 0 | DP37: 0 | DR37: 0 | DT37: 0
B38: 2017 | C38: 16858 | D38: 8 | E38: 134864 | F38: 34 | G38: 0.01 | H38: 0.11 | I38: 0.66 | J38: 0.08 | K38: 0.13 | L38: 0.01 | M38: 0 | N38: =SUM(G38:M38) -> 1 | O38: 2 | P38: 1 | Q38: 10 | R38: 10 | S38: 10 | T38: 3 | U38: 0 | V38: 24.17016964 | W38: 31.93189992 | X38: 2.659748289 | Y38: 116.6738197 | Z38: 6.051196439 | AA38: 91707.52 | AB38: =0 -> 0 | AC38: 504391.36 | AD38: =0 -> 0 | AE38: 32097632 | AF38: 1327985.383 | AG38: 5960988.8 | AH38: 186678.175 | AI38: 137561.28 | AJ38: 51719.66106 | AK38: 0 | AL38: 0 | AM38: 0 | AN38: 1980 | AO38: 10 | AP38: 19800 | AQ38: 46 | AR38: 0.01 | AS38: 0.01 | AT38: 0.86 | AU38: 0.05 | AV38: 0.05 | AW38: 0.02 | AX38: 0 | AY38: 1 | AZ38: 2 | BA38: 1 | BB38: 13 | BC38: 13 | BD38: 13 | BE38: 3 | BF38: 0 | BG38: 24.17016964 | BH38: 31.93189992 | BI38: 2.659748289 | BJ38: 116.6738197 | BK38: 6.051196439 | BL38: 18216 | BM38: =0 -> 0 | BN38: 9108 | BO38: =0 -> 0 | BP38: 10478754 | BQ38: 433540.7718 | BR38: 592020 | BS38: 18540.08066 | BT38: 54648 | BU38: 20546.30516 | BV38: 0 | BW38: 0 | BX38: 0 | BY38: =8129-AN38 -> 6149 | BZ38: 10 | CA38: 61490 | CB38: 46 | CC38: 0.01 | CD38: 0.01 | CE38: 0.86 | CF38: 0.05 | CG38: 0.05 | CH38: 0.02 | CI38: 0 | CJ38: 1 | CK38: 2 | CL38: 1 | CM38: 13 | CN38: 13 | CO38: 13 | CP38: 3 | CQ38: 0 | CR38: 24.17016964 | CS38: 31.93189992 | CT38: 2.659748289 | CU38: 116.6738197 | CV38: 6.051196439 | CW38: 56570.8 | CX38: =0 -> 0 | CY38: 28285.4 | CZ38: =0 -> 0 | DA38: 32542352.7 | DB38: 1346384.952 | DC38: 1838551 | DD38: 57577.25048 | DE38: 169712.4 | DF38: 63807.69215 | DG38: 0 | DH38: 0 | DI38: 0 | DJ38: 74786.8 | DK38: 0 | DL38: 37393.4 | DM38: 0 | DN38: 43021106.7 | DO38: 1779925.724 | DP38: 2430571 | DQ38: 76117.33113 | DR38: 224360.4 | DS38: 84353.99731 | DT38: 0 | DU38: 0 | DV38: 0
B39: =Input!C39 -> 2018 | E39: 0 | N39: 0 | AA39: 0 | AB39: =0 -> 0 | AC39: 0 | AD39: =0 -> 0 | AE39: 0 | AG39: 0 | AI39: 0 | AK39: 0 | AP39: 0 | AY39: 0 | BL39: 0 | BM39: =0 -> 0 | BN39: 0 | BO39: =0 -> 0 | BP39: 0 | BR39: 0 | BT39: 0 | BV39: 0 | CA39: 0 | CJ39: 0 | CW39: 0 | CX39: =0 -> 0 | CY39: 0 | CZ39: =0 -> 0 | DA39: 0 | DC39: 0 | DE39: 0 | DG39: 0 | DJ39: 0 | DK39: 0 | DL39: 0 | DM39: 0 | DN39: 0 | DP39: 0 | DR39: 0 | DT39: 0
B40: =Input!C40 -> 2019 | E40: 0 | N40: 0 | AA40: 0 | AB40: =0 -> 0 | AC40: 0 | AD40: =0 -> 0 | AE40: 0 | AG40: 0 | AI40: 0 | AK40: 0 | AP40: 0 | AY40: 0 | BL40: 0 | BM40: =0 -> 0 | BN40: 0 | BO40: =0 -> 0 | BP40: 0 | BR40: 0 | BT40: 0 | BV40: 0 | CA40: 0 | CJ40: 0 | CW40: 0 | CX40: =0 -> 0 | CY40: 0 | CZ40: =0 -> 0 | DA40: 0 | DC40: 0 | DE40: 0 | DG40: 0 | DJ40: 0 | DK40: 0 | DL40: 0 | DM40: 0 | DN40: 0 | DP40: 0 | DR40: 0 | DT40: 0
B41: =Input!C41 -> 2020 | E41: 0 | N41: 0 | AA41: 0 | AB41: =0 -> 0 | AC41: 0 | AD41: =0 -> 0 | AE41: 0 | AG41: 0 | AI41: 0 | AK41: 0 | AP41: 0 | AY41: 0 | BL41: 0 | BM41: =0 -> 0 | BN41: 0 | BO41: =0 -> 0 | BP41: 0 | BR41: 0 | BT41: 0 | BV41: 0 | CA41: 0 | CJ41: 0 | CW41: 0 | CX41: =0 -> 0 | CY41: 0 | CZ41: =0 -> 0 | DA41: 0 | DC41: 0 | DE41: 0 | DG41: 0 | DJ41: 0 | DK41: 0 | DL41: 0 | DM41: 0 | DN41: 0 | DP41: 0 | DR41: 0 | DT41: 0
B42: =Input!C42 -> 2021 | E42: 0 | N42: 0 | AA42: 0 | AB42: =0 -> 0 | AC42: 0 | AD42: =0 -> 0 | AE42: 0 | AG42: 0 | AI42: 0 | AK42: 0 | AP42: 0 | AY42: 0 | BL42: 0 | BM42: =0 -> 0 | BN42: 0 | BO42: =0 -> 0 | BP42: 0 | BR42: 0 | BT42: 0 | BV42: 0 | CA42: 0 | CJ42: 0 | CW42: 0 | CX42: =0 -> 0 | CY42: 0 | CZ42: =0 -> 0 | DA42: 0 | DC42: 0 | DE42: 0 | DG42: 0 | DJ42: 0 | DK42: 0 | DL42: 0 | DM42: 0 | DN42: 0 | DP42: 0 | DR42: 0 | DT42: 0
B43: =Input!C43 -> 2022 | E43: 0 | N43: 0 | AA43: 0 | AB43: =0 -> 0 | AC43: 0 | AD43: =0 -> 0 | AE43: 0 | AG43: 0 | AI43: 0 | AK43: 0 | AP43: 0 | AY43: 0 | BL43: 0 | BM43: =0 -> 0 | BN43: 0 | BO43: =0 -> 0 | BP43: 0 | BR43: 0 | BT43: 0 | BV43: 0 | CA43: 0 | CJ43: 0 | CW43: 0 | CX43: =0 -> 0 | CY43: 0 | CZ43: =0 -> 0 | DA43: 0 | DC43: 0 | DE43: 0 | DG43: 0 | DJ43: 0 | DK43: 0 | DL43: 0 | DM43: 0 | DN43: 0 | DP43: 0 | DR43: 0 | DT43: 0
B44: =Input!C44 -> 2023 | E44: 0 | N44: 0 | AA44: 0 | AB44: =0 -> 0 | AC44: 0 | AD44: =0 -> 0 | AE44: 0 | AG44: 0 | AI44: 0 | AK44: 0 | AP44: 0 | AY44: 0 | BL44: 0 | BM44: =0 -> 0 | BN44: 0 | BO44: =0 -> 0 | BP44: 0 | BR44: 0 | BT44: 0 | BV44: 0 | CA44: 0 | CJ44: 0 | CW44: 0 | CX44: =0 -> 0 | CY44: 0 | CZ44: =0 -> 0 | DA44: 0 | DC44: 0 | DE44: 0 | DG44: 0 | DJ44: 0 | DK44: 0 | DL44: 0 | DM44: 0 | DN44: 0 | DP44: 0 | DR44: 0 | DT44: 0
B45: =Input!C45 -> 2024 | E45: 0 | N45: 0 | AA45: 0 | AB45: =0 -> 0 | AC45: 0 | AD45: =0 -> 0 | AE45: 0 | AG45: 0 | AI45: 0 | AK45: 0 | AP45: 0 | AY45: 0 | BL45: 0 | BM45: =0 -> 0 | BN45: 0 | BO45: =0 -> 0 | BP45: 0 | BR45: 0 | BT45: 0 | BV45: 0 | CA45: 0 | CJ45: 0 | CW45: 0 | CX45: =0 -> 0 | CY45: 0 | CZ45: =0 -> 0 | DA45: 0 | DC45: 0 | DE45: 0 | DG45: 0 | DJ45: 0 | DK45: 0 | DL45: 0 | DM45: 0 | DN45: 0 | DP45: 0 | DR45: 0 | DT45: 0
B46: =Input!C46 -> 2025 | E46: 0 | N46: 0 | AA46: 0 | AB46: =0 -> 0 | AC46: 0 | AD46: =0 -> 0 | AE46: 0 | AG46: 0 | AI46: 0 | AK46: 0 | AP46: 0 | AY46: 0 | BL46: 0 | BM46: =0 -> 0 | BN46: 0 | BO46: =0 -> 0 | BP46: 0 | BR46: 0 | BT46: 0 | BV46: 0 | CA46: 0 | CJ46: 0 | CW46: 0 | CX46: =0 -> 0 | CY46: 0 | CZ46: =0 -> 0 | DA46: 0 | DC46: 0 | DE46: 0 | DG46: 0 | DJ46: 0 | DK46: 0 | DL46: 0 | DM46: 0 | DN46: 0 | DP46: 0 | DR46: 0 | DT46: 0
B47: =Input!C47 -> 2026 | E47: 0 | N47: 0 | AA47: 0 | AB47: =0 -> 0 | AC47: 0 | AD47: =0 -> 0 | AE47: 0 | AG47: 0 | AI47: 0 | AK47: 0 | AP47: 0 | AY47: 0 | BL47: 0 | BM47: =0 -> 0 | BN47: 0 | BO47: =0 -> 0 | BP47: 0 | BR47: 0 | BT47: 0 | BV47: 0 | CA47: 0 | CJ47: 0 | CW47: 0 | CX47: =0 -> 0 | CY47: 0 | CZ47: =0 -> 0 | DA47: 0 | DC47: 0 | DE47: 0 | DG47: 0 | DJ47: 0 | DK47: 0 | DL47: 0 | DM47: 0 | DN47: 0 | DP47: 0 | DR47: 0 | DT47: 0
B48: =Input!C48 -> 2027 | E48: 0 | N48: 0 | AA48: 0 | AB48: =0 -> 0 | AC48: 0 | AD48: =0 -> 0 | AE48: 0 | AG48: 0 | AI48: 0 | AK48: 0 | AP48: 0 | AY48: 0 | BL48: 0 | BM48: =0 -> 0 | BN48: 0 | BO48: =0 -> 0 | BP48: 0 | BR48: 0 | BT48: 0 | BV48: 0 | CA48: 0 | CJ48: 0 | CW48: 0 | CX48: =0 -> 0 | CY48: 0 | CZ48: =0 -> 0 | DA48: 0 | DC48: 0 | DE48: 0 | DG48: 0 | DJ48: 0 | DK48: 0 | DL48: 0 | DM48: 0 | DN48: 0 | DP48: 0 | DR48: 0 | DT48: 0
B49: =Input!C49 -> 2028 | E49: 0 | N49: 0 | AA49: 0 | AB49: =0 -> 0 | AC49: 0 | AD49: =0 -> 0 | AE49: 0 | AG49: 0 | AI49: 0 | AK49: 0 | AP49: 0 | AY49: 0 | BL49: 0 | BM49: =0 -> 0 | BN49: 0 | BO49: =0 -> 0 | BP49: 0 | BR49: 0 | BT49: 0 | BV49: 0 | CA49: 0 | CJ49: 0 | CW49: 0 | CX49: =0 -> 0 | CY49: 0 | CZ49: =0 -> 0 | DA49: 0 | DC49: 0 | DE49: 0 | DG49: 0 | DJ49: 0 | DK49: 0 | DL49: 0 | DM49: 0 | DN49: 0 | DP49: 0 | DR49: 0 | DT49: 0
B50: =Input!C50 -> 2029 | E50: 0 | N50: 0 | AA50: 0 | AB50: =0 -> 0 | AC50: 0 | AD50: =0 -> 0 | AE50: 0 | AG50: 0 | AI50: 0 | AK50: 0 | AP50: 0 | AY50: 0 | BL50: 0 | BM50: =0 -> 0 | BN50: 0 | BO50: =0 -> 0 | BP50: 0 | BR50: 0 | BT50: 0 | BV50: 0 | CA50: 0 | CJ50: 0 | CW50: 0 | CX50: =0 -> 0 | CY50: 0 | CZ50: =0 -> 0 | DA50: 0 | DC50: 0 | DE50: 0 | DG50: 0 | DJ50: 0 | DK50: 0 | DL50: 0 | DM50: 0 | DN50: 0 | DP50: 0 | DR50: 0 | DT50: 0
B51: =Input!C51 -> 2030 | E51: 0 | N51: 0 | AA51: 0 | AB51: =0 -> 0 | AC51: 0 | AD51: =0 -> 0 | AE51: 0 | AG51: 0 | AI51: 0 | AK51: 0 | AP51: 0 | AY51: 0 | BL51: 0 | BM51: =0 -> 0 | BN51: 0 | BO51: =0 -> 0 | BP51: 0 | BR51: 0 | BT51: 0 | BV51: 0 | CA51: 0 | CJ51: 0 | CW51: 0 | CX51: =0 -> 0 | CY51: 0 | CZ51: =0 -> 0 | DA51: 0 | DC51: 0 | DE51: 0 | DG51: 0 | DJ51: 0 | DK51: 0 | DL51: 0 | DM51: 0 | DN51: 0 | DP51: 0 | DR51: 0 | DT51: 0
B52: =Input!C52 -> 2031 | E52: 0 | N52: 0 | AA52: 0 | AB52: =0 -> 0 | AC52: 0 | AD52: =0 -> 0 | AE52: 0 | AG52: 0 | AI52: 0 | AK52: 0 | AP52: 0 | AY52: 0 | BL52: 0 | BM52: =0 -> 0 | BN52: 0 | BO52: =0 -> 0 | BP52: 0 | BR52: 0 | BT52: 0 | BV52: 0 | CA52: 0 | CJ52: 0 | CW52: 0 | CX52: =0 -> 0 | CY52: 0 | CZ52: =0 -> 0 | DA52: 0 | DC52: 0 | DE52: 0 | DG52: 0 | DJ52: 0 | DK52: 0 | DL52: 0 | DM52: 0 | DN52: 0 | DP52: 0 | DR52: 0 | DT52: 0
B53: =Input!C53 -> 2032 | E53: 0 | N53: 0 | AA53: 0 | AB53: =0 -> 0 | AC53: 0 | AD53: =0 -> 0 | AE53: 0 | AG53: 0 | AI53: 0 | AK53: 0 | AP53: 0 | AY53: 0 | BL53: 0 | BM53: =0 -> 0 | BN53: 0 | BO53: =0 -> 0 | BP53: 0 | BR53: 0 | BT53: 0 | BV53: 0 | CA53: 0 | CJ53: 0 | CW53: 0 | CX53: =0 -> 0 | CY53: 0 | CZ53: =0 -> 0 | DA53: 0 | DC53: 0 | DE53: 0 | DG53: 0 | DJ53: 0 | DK53: 0 | DL53: 0 | DM53: 0 | DN53: 0 | DP53: 0 | DR53: 0 | DT53: 0
B54: =Input!C54 -> 2033 | E54: 0 | N54: 0 | AA54: 0 | AB54: =0 -> 0 | AC54: 0 | AD54: =0 -> 0 | AE54: 0 | AG54: 0 | AI54: 0 | AK54: 0 | AP54: 0 | AY54: 0 | BL54: 0 | BM54: =0 -> 0 | BN54: 0 | BO54: =0 -> 0 | BP54: 0 | BR54: 0 | BT54: 0 | BV54: 0 | CA54: 0 | CJ54: 0 | CW54: 0 | CX54: =0 -> 0 | CY54: 0 | CZ54: =0 -> 0 | DA54: 0 | DC54: 0 | DE54: 0 | DG54: 0 | DJ54: 0 | DK54: 0 | DL54: 0 | DM54: 0 | DN54: 0 | DP54: 0 | DR54: 0 | DT54: 0
B55: =Input!C55 -> 2034 | E55: 0 | N55: 0 | AA55: 0 | AB55: =0 -> 0 | AC55: 0 | AD55: =0 -> 0 | AE55: 0 | AG55: 0 | AI55: 0 | AK55: 0 | AP55: 0 | AY55: 0 | BL55: 0 | BM55: =0 -> 0 | BN55: 0 | BO55: =0 -> 0 | BP55: 0 | BR55: 0 | BT55: 0 | BV55: 0 | CA55: 0 | CJ55: 0 | CW55: 0 | CX55: =0 -> 0 | CY55: 0 | CZ55: =0 -> 0 | DA55: 0 | DC55: 0 | DE55: 0 | DG55: 0 | DJ55: 0 | DK55: 0 | DL55: 0 | DM55: 0 | DN55: 0 | DP55: 0 | DR55: 0 | DT55: 0
B56: =Input!C56 -> 2035 | E56: 0 | N56: 0 | AA56: 0 | AB56: =0 -> 0 | AC56: 0 | AD56: =0 -> 0 | AE56: 0 | AG56: 0 | AI56: 0 | AK56: 0 | AP56: 0 | AY56: 0 | BL56: 0 | BM56: =0 -> 0 | BN56: 0 | BO56: =0 -> 0 | BP56: 0 | BR56: 0 | BT56: 0 | BV56: 0 | CA56: 0 | CJ56: 0 | CW56: 0 | CX56: =0 -> 0 | CY56: 0 | CZ56: =0 -> 0 | DA56: 0 | DC56: 0 | DE56: 0 | DG56: 0 | DJ56: 0 | DK56: 0 | DL56: 0 | DM56: 0 | DN56: 0 | DP56: 0 | DR56: 0 | DT56: 0
B57: =Input!C57 -> 2036 | E57: 0 | N57: 0 | AA57: 0 | AB57: =0 -> 0 | AC57: 0 | AD57: =0 -> 0 | AE57: 0 | AG57: 0 | AI57: 0 | AK57: 0 | AP57: 0 | AY57: 0 | BL57: 0 | BM57: =0 -> 0 | BN57: 0 | BO57: =0 -> 0 | BP57: 0 | BR57: 0 | BT57: 0 | BV57: 0 | CA57: 0 | CJ57: 0 | CW57: 0 | CX57: =0 -> 0 | CY57: 0 | CZ57: =0 -> 0 | DA57: 0 | DC57: 0 | DE57: 0 | DG57: 0 | DJ57: 0 | DK57: 0 | DL57: 0 | DM57: 0 | DN57: 0 | DP57: 0 | DR57: 0 | DT57: 0
B58: =Input!C58 -> 2037 | E58: 0 | N58: 0 | AA58: 0 | AB58: =0 -> 0 | AC58: 0 | AD58: =0 -> 0 | AE58: 0 | AG58: 0 | AI58: 0 | AK58: 0 | AP58: 0 | AY58: 0 | BL58: 0 | BM58: =0 -> 0 | BN58: 0 | BO58: =0 -> 0 | BP58: 0 | BR58: 0 | BT58: 0 | BV58: 0 | CA58: 0 | CJ58: 0 | CW58: 0 | CX58: =0 -> 0 | CY58: 0 | CZ58: =0 -> 0 | DA58: 0 | DC58: 0 | DE58: 0 | DG58: 0 | DJ58: 0 | DK58: 0 | DL58: 0 | DM58: 0 | DN58: 0 | DP58: 0 | DR58: 0 | DT58: 0
B59: =Input!C59 -> 2038 | E59: 0 | N59: 0 | AA59: 0 | AB59: =0 -> 0 | AC59: 0 | AD59: =0 -> 0 | AE59: 0 | AG59: 0 | AI59: 0 | AK59: 0 | AP59: 0 | AY59: 0 | BL59: 0 | BM59: =0 -> 0 | BN59: 0 | BO59: =0 -> 0 | BP59: 0 | BR59: 0 | BT59: 0 | BV59: 0 | CA59: 0 | CJ59: 0 | CW59: 0 | CX59: =0 -> 0 | CY59: 0 | CZ59: =0 -> 0 | DA59: 0 | DC59: 0 | DE59: 0 | DG59: 0 | DJ59: 0 | DK59: 0 | DL59: 0 | DM59: 0 | DN59: 0 | DP59: 0 | DR59: 0 | DT59: 0
B60: =Input!C60 -> 2039 | E60: 0 | N60: 0 | AA60: 0 | AB60: =0 -> 0 | AC60: 0 | AD60: =0 -> 0 | AE60: 0 | AG60: 0 | AI60: 0 | AK60: 0 | AP60: 0 | AY60: 0 | BL60: 0 | BM60: =0 -> 0 | BN60: 0 | BO60: =0 -> 0 | BP60: 0 | BR60: 0 | BT60: 0 | BV60: 0 | CA60: 0 | CJ60: 0 | CW60: 0 | CX60: =0 -> 0 | CY60: 0 | CZ60: =0 -> 0 | DA60: 0 | DC60: 0 | DE60: 0 | DG60: 0 | DJ60: 0 | DK60: 0 | DL60: 0 | DM60: 0 | DN60: 0 | DP60: 0 | DR60: 0 | DT60: 0
B61: =Input!C61 -> 2040 | E61: 0 | N61: 0 | AA61: 0 | AB61: =0 -> 0 | AC61: 0 | AD61: =0 -> 0 | AE61: 0 | AG61: 0 | AI61: 0 | AK61: 0 | AP61: 0 | AY61: 0 | BL61: 0 | BM61: =0 -> 0 | BN61: 0 | BO61: =0 -> 0 | BP61: 0 | BR61: 0 | BT61: 0 | BV61: 0 | CA61: 0 | CJ61: 0 | CW61: 0 | CX61: =0 -> 0 | CY61: 0 | CZ61: =0 -> 0 | DA61: 0 | DC61: 0 | DE61: 0 | DG61: 0 | DJ61: 0 | DK61: 0 | DL61: 0 | DM61: 0 | DN61: 0 | DP61: 0 | DR61: 0 | DT61: 0
B62: =Input!C62 -> 2041 | E62: 0 | N62: 0 | AA62: 0 | AB62: =0 -> 0 | AC62: 0 | AD62: =0 -> 0 | AE62: 0 | AG62: 0 | AI62: 0 | AK62: 0 | AP62: 0 | AY62: 0 | BL62: 0 | BM62: =0 -> 0 | BN62: 0 | BO62: =0 -> 0 | BP62: 0 | BR62: 0 | BT62: 0 | BV62: 0 | CA62: 0 | CJ62: 0 | CW62: 0 | CX62: =0 -> 0 | CY62: 0 | CZ62: =0 -> 0 | DA62: 0 | DC62: 0 | DE62: 0 | DG62: 0 | DJ62: 0 | DK62: 0 | DL62: 0 | DM62: 0 | DN62: 0 | DP62: 0 | DR62: 0 | DT62: 0
B63: =Input!C63 -> 2042 | E63: 0 | N63: 0 | AA63: 0 | AB63: =0 -> 0 | AC63: 0 | AD63: =0 -> 0 | AE63: 0 | AG63: 0 | AI63: 0 | AK63: 0 | AP63: 0 | AY63: 0 | BL63: 0 | BM63: =0 -> 0 | BN63: 0 | BO63: =0 -> 0 | BP63: 0 | BR63: 0 | BT63: 0 | BV63: 0 | CA63: 0 | CJ63: 0 | CW63: 0 | CX63: =0 -> 0 | CY63: 0 | CZ63: =0 -> 0 | DA63: 0 | DC63: 0 | DE63: 0 | DG63: 0 | DJ63: 0 | DK63: 0 | DL63: 0 | DM63: 0 | DN63: 0 | DP63: 0 | DR63: 0 | DT63: 0
B64: =Input!C64 -> 2043 | E64: 0 | N64: 0 | AA64: 0 | AB64: =0 -> 0 | AC64: 0 | AD64: =0 -> 0 | AE64: 0 | AG64: 0 | AI64: 0 | AK64: 0 | AP64: 0 | AY64: 0 | BL64: 0 | BM64: =0 -> 0 | BN64: 0 | BO64: =0 -> 0 | BP64: 0 | BR64: 0 | BT64: 0 | BV64: 0 | CA64: 0 | CJ64: 0 | CW64: 0 | CX64: =0 -> 0 | CY64: 0 | CZ64: =0 -> 0 | DA64: 0 | DC64: 0 | DE64: 0 | DG64: 0 | DJ64: 0 | DK64: 0 | DL64: 0 | DM64: 0 | DN64: 0 | DP64: 0 | DR64: 0 | DT64: 0
B65: =Input!C65 -> 2044 | E65: 0 | N65: 0 | AA65: 0 | AB65: =0 -> 0 | AC65: 0 | AD65: =0 -> 0 | AE65: 0 | AG65: 0 | AI65: 0 | AK65: 0 | AP65: 0 | AY65: 0 | BL65: 0 | BM65: =0 -> 0 | BN65: 0 | BO65: =0 -> 0 | BP65: 0 | BR65: 0 | BT65: 0 | BV65: 0 | CA65: 0 | CJ65: 0 | CW65: 0 | CX65: =0 -> 0 | CY65: 0 | CZ65: =0 -> 0 | DA65: 0 | DC65: 0 | DE65: 0 | DG65: 0 | DJ65: 0 | DK65: 0 | DL65: 0 | DM65: 0 | DN65: 0 | DP65: 0 | DR65: 0 | DT65: 0
B66: =Input!C66 -> 2045 | E66: 0 | N66: 0 | AA66: 0 | AB66: =0 -> 0 | AC66: 0 | AD66: =0 -> 0 | AE66: 0 | AG66: 0 | AI66: 0 | AK66: 0 | AP66: 0 | AY66: 0 | BL66: 0 | BM66: =0 -> 0 | BN66: 0 | BO66: =0 -> 0 | BP66: 0 | BR66: 0 | BT66: 0 | BV66: 0 | CA66: 0 | CJ66: 0 | CW66: 0 | CX66: =0 -> 0 | CY66: 0 | CZ66: =0 -> 0 | DA66: 0 | DC66: 0 | DE66: 0 | DG66: 0 | DJ66: 0 | DK66: 0 | DL66: 0 | DM66: 0 | DN66: 0 | DP66: 0 | DR66: 0 | DT66: 0
B67: =Input!C67 -> 2046 | E67: 0 | N67: 0 | AA67: 0 | AB67: =0 -> 0 | AC67: 0 | AD67: =0 -> 0 | AE67: 0 | AG67: 0 | AI67: 0 | AK67: 0 | AP67: 0 | AY67: 0 | BL67: 0 | BM67: =0 -> 0 | BN67: 0 | BO67: =0 -> 0 | BP67: 0 | BR67: 0 | BT67: 0 | BV67: 0 | CA67: 0 | CJ67: 0 | CW67: 0 | CX67: =0 -> 0 | CY67: 0 | CZ67: =0 -> 0 | DA67: 0 | DC67: 0 | DE67: 0 | DG67: 0 | DJ67: 0 | DK67: 0 | DL67: 0 | DM67: 0 | DN67: 0 | DP67: 0 | DR67: 0 | DT67: 0
B68: =Input!C68 -> 2047 | E68: 0 | N68: 0 | AA68: 0 | AB68: =0 -> 0 | AC68: 0 | AD68: =0 -> 0 | AE68: 0 | AG68: 0 | AI68: 0 | AK68: 0 | AP68: 0 | AY68: 0 | BL68: 0 | BM68: =0 -> 0 | BN68: 0 | BO68: =0 -> 0 | BP68: 0 | BR68: 0 | BT68: 0 | BV68: 0 | CA68: 0 | CJ68: 0 | CW68: 0 | CX68: =0 -> 0 | CY68: 0 | CZ68: =0 -> 0 | DA68: 0 | DC68: 0 | DE68: 0 | DG68: 0 | DJ68: 0 | DK68: 0 | DL68: 0 | DM68: 0 | DN68: 0 | DP68: 0 | DR68: 0 | DT68: 0
B69: =Input!C69 -> 2048 | E69: 0 | N69: 0 | AA69: 0 | AB69: =0 -> 0 | AC69: 0 | AD69: =0 -> 0 | AE69: 0 | AG69: 0 | AI69: 0 | AK69: 0 | AP69: 0 | AY69: 0 | BL69: 0 | BM69: =0 -> 0 | BN69: 0 | BO69: =0 -> 0 | BP69: 0 | BR69: 0 | BT69: 0 | BV69: 0 | CA69: 0 | CJ69: 0 | CW69: 0 | CX69: =0 -> 0 | CY69: 0 | CZ69: =0 -> 0 | DA69: 0 | DC69: 0 | DE69: 0 | DG69: 0 | DJ69: 0 | DK69: 0 | DL69: 0 | DM69: 0 | DN69: 0 | DP69: 0 | DR69: 0 | DT69: 0
B70: =Input!C70 -> 2049 | E70: 0 | N70: 0 | AA70: 0 | AB70: =0 -> 0 | AC70: 0 | AD70: =0 -> 0 | AE70: 0 | AG70: 0 | AI70: 0 | AK70: 0 | AP70: 0 | AY70: 0 | BL70: 0 | BM70: =0 -> 0 | BN70: 0 | BO70: =0 -> 0 | BP70: 0 | BR70: 0 | BT70: 0 | BV70: 0 | CA70: 0 | CJ70: 0 | CW70: 0 | CX70: =0 -> 0 | CY70: 0 | CZ70: =0 -> 0 | DA70: 0 | DC70: 0 | DE70: 0 | DG70: 0 | DJ70: 0 | DK70: 0 | DL70: 0 | DM70: 0 | DN70: 0 | DP70: 0 | DR70: 0 | DT70: 0
B71: =Input!C71 -> 2050 | E71: 0 | N71: 0 | AA71: 0 | AB71: =0 -> 0 | AC71: 0 | AD71: =0 -> 0 | AE71: 0 | AG71: 0 | AI71: 0 | AK71: 0 | AP71: 0 | AY71: 0 | BL71: 0 | BM71: =0 -> 0 | BN71: 0 | BO71: =0 -> 0 | BP71: 0 | BR71: 0 | BT71: 0 | BV71: 0 | CA71: 0 | CJ71: 0 | CW71: 0 | CX71: =0 -> 0 | CY71: 0 | CZ71: =0 -> 0 | DA71: 0 | DC71: 0 | DE71: 0 | DG71: 0 | DJ71: 0 | DK71: 0 | DL71: 0 | DM71: 0 | DN71: 0 | DP71: 0 | DR71: 0 | DT71: 0
E72: Total Commuter Trips / Week = Number of Commuters * One-Way Trips / Week | N72: Total % Mode Splits = Sum of all % Trips Made by Each Mode | AA72: Total Distance = Total Trips / Week * Weeks / Year * % Trips by Bike * Miles / Trip | AB72: Assuming bikers do not use any fuel. | AC72: Total Distance = Total Trips / Week * Weeks / Year * % Trips by Foot * Miles / Trip | AD72: Assuming pedestrians do not use any fuel. | AE72: Total Distance = ((Total Trips / Week * Weeks / Year * % Trips Driven Alone * Miles / Trip) + (Total Trips / Week * Weeks / Year * % Carpool * Miles / Trip % Carpool)/2) | AF72: Fuel Consumption = Total Distance / Fuel Efficiency | AG72: Total Distance = Total Trips / Week * Weeks / Year * % Trips by Bus * Miles / Trip | AH72: Fuel Consumption = Total Distance / Fuel Efficiency | AI72: Total Distance = Total Trips / Week * Weeks / Year * % Trips by Light Rail * Miles / Trip | AJ72: Fuel Consumption = Total Distance / Fuel Efficiency | AK72: Total Distance = Total Trips / Week * Weeks / Year * % Trips by Commuter Rail * Miles / Trip | AL72: Fuel Consumption = Total Distance / Fuel Efficiency | AM72: Fuel Consumption = Total Distance / Fuel Efficiency | AP72: Total Commuter Trips / Week = Number of Commuters * One-Way Trips / Week | BL72: Total Distance = Total Trips / Week * Weeks / Year * % Trips by Bike * Miles / Trip | BM72: Assuming bikers do not use any fuel. | BN72: Total Distance = Total Trips / Week * Weeks / Year * % Trips by Foot * Miles / Trip | BO72: Assuming pedestrians do not use any fuel. | BP72: Total Distance = ((Total Trips / Week * Weeks / Year * % Trips Driven Alone * Miles / Trip) + (Total Trips / Week * Weeks / Year * % Carpool * Miles / Trip % Carpool)/2) | BQ72: Fuel Consumption = Total Distance / Fuel Efficiency | BR72: Total Distance = Total Trips / Week * Weeks / Year * % Trips by Bus * Miles / Trip | BS72: Fuel Consumption = Total Distance / Fuel Efficiency | BT72: Total Distance = Total Trips / Week * Weeks / Year * % Trips by Light Rail * Miles / Trip | BU72: Fuel Consumption = Total Distance / Fuel Efficiency | BV72: Total Distance = Total Trips / Week * Weeks / Year * % Trips by Commuter Rail * Miles / Trip | BW72: Fuel Consumption = Total Distance / Fuel Efficiency | BX72: Fuel Consumption = Total Distance / Fuel Efficiency | CA72: Total Commuter Trips / Week = Number of Commuters * One-Way Trips / Week | CW72: Total Distance = Total Trips / Week * Weeks / Year * % Trips by Bike * Miles / Trip | CX72: Assuming bikers do not use any fuel. | CY72: Total Distance = Total Trips / Week * Weeks / Year * % Trips by Foot * Miles / Trip | CZ72: Assuming pedestrians do not use any fuel. | DA72: Total Distance = ((Total Trips / Week * Weeks / Year * % Trips Driven Alone * Miles / Trip) + (Total Trips / Week * Weeks / Year * % Carpool * Miles / Trip % Carpool)/2) | DB72: Fuel Consumption = Total Distance / Fuel Efficiency | DC72: Total Distance = Total Trips / Week * Weeks / Year * % Trips by Bus * Miles / Trip | DD72: Fuel Consumption = Total Distance / Fuel Efficiency | DE72: Total Distance = Total Trips / Week * Weeks / Year * % Trips by Light Rail * Miles / Trip | DF72: Fuel Consumption = Total Distance / Fuel Efficiency | DG72: Total Distance = Total Trips / Week * Weeks / Year * % Trips by Commuter Rail * Miles / Trip | DH72: Fuel Consumption = Total Distance / Fuel Efficiency | DI72: Fuel Consumption = Total Distance / Fuel Efficiency
B74: ©2001-2016 University of New Hampshire. All rights reserved.
B75: UNH, Campus Carbon Calculator, and the UNH logo are trademarks of the University of New Hampshire.
